Cogmind - Beta 15 @@@ ROGUE MODE // 2025.07.15 @ 19:07:23 Player: puppuppit Result: Escaped! Performance ------------- Evolutions (9) 4500 Regions Visited (37) 7400 Robots Destroyed (1197) 5985 Value Destroyed (47232) 47232 Prototype IDs (153) 3060 Alien Tech Used (5) 1000 Bonus (41900) 41900 TOTAL SCORE: 111077 Bonus ------- Triggered High Security 2500 High Alert Combat Kills 17732 Follower Combat Kills 7051 Awakened Behemoth Slayer 1000 Network Hubs Disabled 400 Registered with UFD 300 Met Optimus in HQ 500 Met Imprinter 300 Met Warlord at Base 500 MAIN.C Attacked Warlord 500 Warlord Defense Kills 7372 Built Enhanced Grunts 300 Met R17 at Cetus 500 Hacked Protovariant 500 Met R17 at Research 2000 Scanned by Researcher 500 Win 3000 Friendly Fire -3055 Cogmind --------- Core Integrity 253/1600 Matter 61/300 Energy 304/400 System Corruption 0% Temperature Cool (5) Movement Walking (113) Location To Epsilon Eridani Parts ------- > --- POWER (2) -------- Micro Antimatter Reactor Quantum Reactor > --- PROPULSION (8) --- Enhanced Biometal Leg High-density Centrium Leg High-density Centrium Leg > --- UTILITY (11) ----- Advanced Heat Sink Large Storage Unit Advanced Visual Processing Unit Advanced Target Analyzer Advanced Hacking Suite > --- WEAPON (5) ------- (None) > --- INVENTORY (15) --- Improved Quantum Reactor Advanced Heat Sink Advanced Matter Compressor (223) Advanced Recoil Stabilizer Improved Kinecellerator Advanced Reaction Control System CR-A16's Behemoth Slayer Peak State ------------ > --- POWER ------------ Quantum Reactor Zero-point Reactor > --- PROPULSION ------- Combat Gravmag System Combat Gravmag System Improved Antigrav System Improved Antigrav System Improved Antigrav System Improved Antigrav System Combat Antigrav System Combat Linear Gravjet > --- UTILITY ---------- 2N-1CE's Frost Array Experimental Coolant Injector Large Storage Unit Advanced Matter Compressor Advanced Visual Processing Unit Advanced Target Analyzer Advanced Target Analyzer Medium Regenerative Plating Graphene Brace Advanced Force Field Advanced Hacking Suite > --- WEAPON ----------- Railgun Hellfire Missile Launcher Sigix Broadsword CR-A16's Behemoth Slayer > --- INVENTORY -------- Vortex Chain Reactor Improved Antigrav System Improved Antigrav System Improved Antigrav System Advanced Matter Compressor Dimensional Node Initializer High-powered Transdimensional Reconstructor High-powered Transdimensional Reconstructor Core Cannon Railgun Railgun Railgun Railgun [Rating: 216] Favorites ----------- Power Light Antimatter Reactor Engine Light Ion Engine Power Core Micro Nuclear Core Reactor Light Antimatter Reactor Propulsion Combat Airjet Treads Light Treads Leg High-density Centrium Leg Wheel Compact Wheel Hover Unit Combat Airjet Flight Unit Impulse Thruster Array Utility Large Storage Unit Device Advanced Recoil Stabilizer Storage Large Storage Unit Processor Advanced Targeting Computer Hackware Advanced Hacking Suite Protection Light Armor Plating Weapon KE Penetrator Energy Gun Vortex Shotgun Energy Cannon Enhanced Nova Cannon Ballistic Gun KE Penetrator Ballistic Cannon Light Cannon Launcher Hellfire Missile Launcher Special Weapon Improved Remote Datajack Slashing Weapon Sigix Broadsword Piercing Weapon CR-A16's Pointy Stick Build | -11 -10 -10 -9 -9 -9 -8 -8 -8 -8 -8 -6 -6 -6 -6 -6 -6 -6 -5 -5 -5 -5 -5 -5 -5 -4 -4 -4 -4 -4 -4 -3 -3 -2 -2 -2 -1 -1 ------- Run | Yrd Mat Min Mat Min Exi Min Mat Sto Rec Scr Fac Was Fac Low Low Zio Dee Pro Fac Was Fac Upp Upp War Pro Fac Ext Cet Arc Hub Res Tes Res Qua Frg Acc Com Slots Evolved 18 | . . . 2 . . . 2 . . . 4 . . . . . . . 2 . . . . . . 2 . . . . 2 . 2 . . 2 . Power 1 | . . . . . . . . . . . . . . . . . . . . . . . . . . 1 . . . . . . . . . . . Propulsion 6 | . . . . . . . 1 . . . 2 . . . . . . . 1 . . . . . . . . . . . 1 . 1 . . . . Utility 8 | . . . . . . . 1 . . . 2 . . . . . . . 1 . . . . . . 1 . . . . 1 . 1 . . 1 . Weapon 3 | . . . 2 . . . . . . . . . . . . . . . . . . . . . . . . . . . . . . . . 1 . Parts Attached 520 | 7 8 2 35 . 1 . 31 34 8 3 38 1 1 2 3 2 10 6 12 1 27 4 4 21 5 59 14 10 11 12 29 17 22 11 17 34 18 Power 81 | 1 1 1 4 . . . 4 5 . . 4 . . . . . 1 . 1 . 1 . 2 . . 15 4 2 1 3 8 3 8 3 . 5 4 Engine 13 | 1 1 . 4 . . . 3 2 . . 1 . . . . . . . . . . . . . . . . . 1 . . . . . . . . Core 13 | . . 1 . . . . 1 2 . . 3 . . . . . . . . . 1 . . . . 2 2 . . 1 . . . . . . . Reactor 55 | . . . . . . . . 1 . . . . . . . . 1 . 1 . . . 2 . . 13 2 2 . 2 8 3 8 3 . 5 4 Propulsion 148 | 2 2 . 8 . . . 11 11 6 . 14 . . . . . 3 1 2 . 9 1 1 6 1 9 4 4 3 5 10 5 4 3 5 11 7 Treads 37 | 2 2 . 8 . . . 11 11 1 . . . . . . . . . . . . . . . . . . 2 . . . . . . . . . Leg 4 | . . . . . . . . . . . . . . . . . . . . . . . . . . . . 1 . . . . . . . . 3 Wheel 5 | . . . . . . . . . 5 . . . . . . . . . . . . . . . . . . . . . . . . . . . . Hover 101 | . . . . . . . . . . . 14 . . . . . 3 1 2 . 9 1 1 6 1 9 4 1 3 5 10 5 4 3 5 11 3 Flight 1 | . . . . . . . . . . . . . . . . . . . . . . . . . . . . . . . . . . . . . 1 Utility 165 | 2 3 1 7 . 1 . 8 6 2 1 9 . 1 2 3 2 6 . 6 1 6 3 1 9 1 24 2 3 6 1 8 6 6 2 11 10 5 Device 81 | 1 1 . 3 . . . 5 4 . . 2 . . 1 1 . 3 . 4 . 2 3 1 7 . 11 2 3 3 . 5 3 3 1 5 5 2 Storage 11 | 1 1 . 1 . 1 . . . . 1 1 . . . . . 1 . . . . . . . . . . . . . 2 . . 1 . 1 . Processor 24 | . . . . . . . 1 1 . . 2 . . . 2 1 . . 1 1 1 . . . . 5 . . . . . . 2 . 4 1 2 Hackware 28 | . . . . . . . 2 . 2 . 3 . 1 1 . 1 . . . . 2 . . . 1 8 . . 3 1 . 2 . . . 1 . Protection 21 | . 1 1 3 . . . . 1 . . 1 . . . . . 2 . 1 . 1 . . 2 . . . . . . 1 1 1 . 2 2 1 Artifact . | . . . . . . . . . . . . . . . . . . . . . . . . . . . . . . . . . . . . . . Weapon 126 | 2 2 . 16 . . . 8 12 . 2 11 1 . . . . . 5 3 . 11 . . 6 3 11 4 1 1 3 3 3 4 3 1 8 2 Energy Gun 7 | . . . . . . . . . . . . . . . . . . . . . . . . 4 . . . . . 1 . 1 . . . . 1 Energy Cannon 2 | . . . . . . . . . . . . . . . . . . . . . . . . . . . . . . . . . . 1 . 1 . Ballistic Gun 69 | 2 1 . 8 . . . 4 7 . 2 . . . . . . . 4 . . 10 . . 1 2 8 4 1 1 2 1 1 3 1 1 5 . Ballistic Cannon 23 | . . . 6 . . . 2 1 . . 10 . . . . . . . . . . . . . . . . . . . 1 . . . . 2 1 Launcher 13 | . 1 . 2 . . . 2 2 . . 1 1 . . . . . . 1 . . . . 1 . 2 . . . . . . . . . . . Special Weapon 6 | . . . . . . . . 2 . . . . . . . . . 1 . . 1 . . . 1 1 . . . . . . . . . . . Impact Weapon . | . . . . . . . . . . . . . . . . . . . . . . . . . . . . . . . . . . . . . . Slashing Weapon 3 | . . . . . . . . . . . . . . . . . . . 1 . . . . . . . . . . . 1 . . 1 . . . Piercing Weapon 3 | . . . . . . . . . . . . . . . . . . . 1 . . . . . . . . . . . . 1 1 . . . . Special Melee Weapon . | . . . . . . . . . . . . . . . . . . . . . . . . . . . . . . . . . . . . . . Unidentified Prototypes 66 | . . . 1 . . . . 2 . . 2 . . . 1 1 6 . 2 1 1 . . 11 . 6 . 5 . . 4 9 3 3 2 3 3 Corrupted Parts 2 | . . . . . . . . . . . . . . . . . . . . . . . . . . . . 1 . 1 . . . . . . . System Corruption 12 | . . . . . . . . . . . . . . . . . . . . . . . . . . . . 3 . 9 . . . . . . . Parts Lost 168 | . . 1 6 . . . 4 14 3 . 10 . . . 1 . . . 1 . 11 . 3 2 2 18 15 4 2 7 2 3 7 3 6 10 33 Power 17 | . . 1 . . . . 2 2 . . . . . . . . . . . . 1 . 1 . . 1 3 . 1 . . . . . . 1 4 Propulsion 54 | . . . 1 . . . . 2 3 . 3 . . . . . . . . . 5 . 1 1 1 5 5 1 . 5 . 1 3 . . 4 13 Utility 50 | . . . . . . . 1 3 . . 2 . . . 1 . . . 1 . 3 . . . 1 9 2 2 1 . 1 2 2 3 5 1 10 Weapon 47 | . . . 5 . . . 1 7 . . 5 . . . . . . . . . 2 . 1 1 . 3 5 1 . 2 1 . 2 . 1 4 6 Highest Loss Streak 15 | . . 1 3 . . . 1 4 2 . 4 . . . 1 . . . 1 . 3 . 1 1 2 7 3 4 1 4 1 2 3 1 2 5 15 To Critical Strikes 4 | . . . . . . . . . . . . . . . . . . . . . . . . . . . 1 1 . . . . . . . . 2 Average Backups 13 | . 6 14 14 15 14 15 14 13 11 13 14 15 15 15 14 14 13 13 13 15 14 13 14 13 14 13 13 12 13 13 13 13 13 12 12 12 10 Power . | . . . . . 1 2 . . . . . 1 1 1 1 1 . 1 1 1 . 1 . . 1 1 1 1 1 2 1 1 2 1 1 1 1 Propulsion 3 | . 1 3 3 2 1 1 1 2 2 2 5 5 4 4 4 4 4 4 3 4 4 3 3 4 2 2 1 . 1 1 2 3 2 2 2 2 2 Utility 5 | . 3 8 5 7 6 6 6 5 4 5 4 4 4 5 5 5 4 5 5 5 4 3 4 5 6 5 4 5 6 5 5 4 5 3 2 2 3 Weapon 4 | . 1 3 5 5 5 5 4 4 4 5 3 5 5 4 3 4 4 3 3 4 4 4 4 2 3 4 5 4 4 4 3 2 3 4 3 3 2 Tool/Special . | . . . . . . . . . . . . . . . . . . . . . . . . . . . . . . . . . . . . . . Unused Backups 89 | . 1 1 12 . 1 . 11 3 . 1 11 . 1 2 . 1 6 . 2 . 2 . . 2 . 5 . 1 2 1 5 3 3 2 1 5 4 Power 11 | . . . . . . . 2 . . . 2 . . . . . 2 . . . 1 . . . . . . . . . 1 . 1 . . 1 1 Propulsion 16 | . . . 2 . . . 2 . . . . . 1 . . . 2 . . . 1 . . 1 . 2 . . 1 . 1 2 . . 1 . . Utility 48 | . 1 1 5 . 1 . 5 1 . 1 9 . . 2 . . 2 . 1 . . . . 1 . 2 . 1 1 1 3 1 2 . . 4 3 Weapon 12 | . . . 5 . . . 2 2 . . . . . . . 1 . . . . . . . . . . . . . . . . . 2 . . . Tool/Special 2 | . . . . . . . . . . . . . . . . . . . 1 . . . . . . 1 . . . . . . . . . . . Average Slot Usage (%) 96 | . 99 99 99 100 100 100 98 98 63 82 96 99 100 100 93 98 100 99 99 100 99 100 99 95 98 99 99 91 99 97 95 94 95 96 93 90 82 Engine 3 | . 14 7 10 11 11 11 8 7 . . . . . . . . . . . . . . . . . . . . . 1 . . . . . . . Core 1 | . . 6 . . . . . . . . 5 6 6 6 6 6 1 . . . . . . . . . 2 . . 1 . . . . . . . Reactor 3 | . . . . . . . . . 8 9 . . . . . . 4 6 5 5 4 5 4 5 5 9 7 10 9 6 8 9 8 8 8 6 6 Treads 8 | . 28 28 21 22 22 22 25 26 10 . . . . . . . . . . . . . . . . . . 4 . . . . . . . . . Wheel 1 | . . . . . . . . . 15 27 1 . . . . . . . . . . . . . . . . . . . . . . . . . . Hover 19 | . . . . . . . . . . . 31 33 33 33 31 31 31 31 32 33 32 33 33 33 32 29 29 18 28 28 27 27 29 32 33 28 18 Device 9 | . 12 . 3 11 11 11 3 13 . . 4 6 1 4 6 6 10 12 14 22 17 22 22 22 20 10 14 14 11 3 10 11 13 14 12 13 8 Storage 7 | . 14 14 11 11 11 11 9 9 9 9 6 6 6 6 6 6 6 6 5 5 5 5 5 5 5 5 5 5 5 5 4 4 4 4 4 3 3 Processor 5 | . . . . . . . 2 1 . . 4 6 6 6 9 14 12 12 14 11 8 5 5 5 5 5 10 10 9 5 4 4 7 7 8 13 14 Hackware 8 | . . . . . . . 11 . 15 18 16 13 18 14 6 8 7 6 2 . 5 5 5 5 5 19 10 10 14 26 19 18 12 9 6 3 6 Protection 1 | . 1 14 7 . . . . 2 . . . . . . . . . . 1 . . . . . . . . . . . . . 2 3 6 3 3 Ballistic Gun 16 | . 28 27 24 . . . 16 34 2 19 2 . . . . . . 7 21 21 21 21 21 10 17 19 19 19 20 18 16 17 14 11 7 7 . Ballistic Cannon 8 | . . . 19 44 44 44 18 . 1 . 20 25 26 26 25 24 24 17 . . . . . . . . . . . . . . . . . 1 6 Peak Build Rating 216 | 9 9 10 18 13 13 13 36 36 27 31 68 71 70 73 78 81 88 95 111 114 111 112 112 132 132 144 136 138 135 130 158 168 182 191 201 216 208 Average Rating 79 | 7 7 8 13 13 12 12 27 29 19 24 63 68 69 72 71 77 84 88 106 110 108 110 110 121 124 133 130 129 128 123 150 159 174 179 191 190 180 On Entrance 86 | . 9 8 10 13 13 13 12 35 12 18 31 68 69 70 73 78 79 86 95 111 110 107 112 107 127 118 134 128 133 124 128 158 164 175 184 201 184 Naked Turns . | . . . . . . . . . . . . . . . . . . . . . . . . . . . . . . . . . . . . . . Heaviest Build 118 | 12 30 32 43 36 37 37 43 48 49 45 57 62 57 57 60 62 62 63 61 61 61 59 73 76 69 81 74 75 76 68 88 93 101 103 92 109 118 Greatest Support 176 | 40 40 40 43 40 40 40 64 64 62 48 64 57 57 57 57 57 62 60 67 64 68 71 72 77 79 92 77 176 89 75 88 92 105 104 105 115 108 Greatest Overweight (x) 1 | 1 . . 1 . . . . . 1 . 1 1 . . 1 1 . 1 . . . . 1 1 . 1 1 1 1 . 1 1 . . . 1 1 Average Overweight (x) . | . . . . . . . . . . . . . . . . . . . . . . . . . . . . . . . . . . . . . . Largest Inventory Capacity 15 | 8 15 15 15 15 15 15 15 15 15 15 15 15 15 15 15 15 15 15 15 15 15 15 15 15 15 15 15 15 15 15 15 15 15 15 15 15 15 Average Capacity 14 | 7 9 15 15 15 15 15 15 15 15 15 15 15 15 15 15 15 15 15 15 15 15 15 15 15 15 15 15 15 15 15 15 15 15 15 15 15 15 Most Carried 15 | 2 14 15 15 15 15 15 15 15 14 15 15 15 15 15 15 15 15 15 15 15 15 15 15 15 15 15 15 15 15 15 15 15 15 15 15 15 15 Average Carried 14 | . 6 14 14 15 14 14 14 14 12 14 14 15 14 14 14 14 14 14 14 15 14 14 14 14 14 14 14 14 14 14 14 14 14 14 14 14 11 Final Capacity 15 | 8 15 15 15 15 15 15 15 15 15 15 15 15 15 15 15 15 15 15 15 15 15 15 15 15 15 15 15 15 15 15 15 15 15 15 15 15 15 Final Carried 15 | 2 14 15 15 15 15 15 15 15 12 15 15 15 15 15 15 15 15 15 15 15 15 15 14 15 15 15 12 15 15 15 15 15 15 15 15 15 15 Class Distribution -------------------- 29% | Scavenger-Gunner 19% | Gunner 18% | Hacker-Gunner 12% | Scavenger-Tank 6% | Mutant 3% | Scavenger-Mutant 3% | Tank 3% | Hacker-Mutant Dominant Class ---------------- Mutant | -10/Materials Mutant | -10/Mines Scavenger-Tank | -9/Materials Gunner | -9/Mines Gunner | -9/Exiles Scavenger-Gunner | -8/Mines Gunner | -8/Materials Scavenger-Gunner | -8/Storage Hacker-Mutant | -8/Recycling Hacker-Gunner | -8/Scraptown Hacker-Gunner | -6/Factory Hacker-Gunner | -6/Waste Hacker-Gunner | -6/Factory Hacker-Gunner | -6/Lower Caves Gunner | -6/Lower Caves Gunner | -6/Zion Gunner | -6/Deep Caves Gunner | -5/Proximity Caves Gunner | -5/Factory Tank | -5/Waste Scavenger-Gunner | -5/Factory Scavenger-Tank | -5/Upper Caves Scavenger-Gunner | -5/Upper Caves Scavenger-Gunner | -5/Warlord Scavenger-Gunner | -4/Proximity Caves Scavenger-Gunner | -4/Factory Scavenger-Gunner | -4/Extension Scavenger-Gunner | -4/Cetus Scavenger-Gunner | -4/Archives Scavenger-Gunner | -4/Hub_04(d) Scavenger-Tank | -3/Research Scavenger-Tank | -3/Testing Scavenger-Tank | -2/Research Scavenger-Mutant | -2/Quarantine Scavenger-Mutant | -2/Protoforge Scavenger-Gunner | -1/Access Scavenger-Gunner | -1/Command Resources | -11 -10 -10 -9 -9 -9 -8 -8 -8 -8 -8 -6 -6 -6 -6 -6 -6 -6 -5 -5 -5 -5 -5 -5 -5 -4 -4 -4 -4 -4 -4 -3 -3 -2 -2 -2 -1 -1 ----------- Run | Yrd Mat Min Mat Min Exi Min Mat Sto Rec Scr Fac Was Fac Low Low Zio Dee Pro Fac Was Fac Upp Upp War Pro Fac Ext Cet Arc Hub Res Tes Res Qua Frg Acc Com Matter Collected 43514 | 479 700 201 3149 . 60 120 2398 3545 430 30 3556 174 10 186 180 290 478 752 1667 302 3008 573 810 745 537 4664 1398 424 535 1203 2315 2338 2046 711 779 1399 1322 Remotely 578 | . . . 339 . . 120 119 . . . . . . . . . . . . . . . . . . . . . . . . . . . . . . Salvage Created 48922 | 260 878 303 3763 . . 160 3039 5783 412 . 3341 523 . 85 24 112 160 664 3264 413 4735 326 726 1998 457 3473 2085 242 440 1300 1570 1336 2663 382 1671 1233 1101 Parts 2296 | 30 48 24 270 . . 14 167 288 13 . 170 1 . 3 1 12 11 26 135 7 181 18 17 68 15 149 80 7 29 51 59 58 122 19 109 61 33 Haulers Intercepted 32 | . 2 . 6 . . . 6 5 . . 1 . . . . . . . 4 . 3 . . . . 1 . . . 1 1 1 1 . . . . Recyclers Shooed 34 | . 3 1 2 . . . 2 3 1 . 9 . . . . . . . 3 . 5 . . . . 4 . . . . . . 1 . . . . Parts Field Recycled . | . . . . . . . . . . . . . . . . . . . . . . . . . . . . . . . . . . . . . . Retrieved Matter . | . . . . . . . . . . . . . . . . . . . . . . . . . . . . . . . . . . . . . . Parts Self-Destructed 89 | . . . . . . . . . . . . . . 8 2 . . 40 . . . 26 12 . 1 . . . . . . . . . . . . Prevented 8 | . . . . . . . . . . . . . . . . . . . . . . 7 1 . . . . . . . . . . . . . . Kills | -11 -10 -10 -9 -9 -9 -8 -8 -8 -8 -8 -6 -6 -6 -6 -6 -6 -6 -5 -5 -5 -5 -5 -5 -5 -4 -4 -4 -4 -4 -4 -3 -3 -2 -2 -2 -1 -1 ------- Run | Yrd Mat Min Mat Min Exi Min Mat Sto Rec Scr Fac Was Fac Low Low Zio Dee Pro Fac Was Fac Upp Upp War Pro Fac Ext Cet Arc Hub Res Tes Res Qua Frg Acc Com Combat Hostiles Destroyed 781 | . 13 10 61 . . . 60 72 2 . 53 . . 6 2 2 7 19 49 1 65 6 12 62 14 38 37 2 2 20 26 22 36 8 23 30 21 Melee 20 | . . . . . . . . . . . 1 . . . . . . . . . . . . . . . . . . . . 1 . . 17 1 . Guns 349 | . 11 7 23 . . . 21 57 1 . 1 . . . . . . 3 22 1 35 6 9 12 4 28 27 2 2 14 17 14 20 4 2 5 1 Cannons 113 | . . . 22 . . . 18 . 1 . 31 . . 2 2 2 6 9 . . . . . . . . . . . . . . . . . 3 17 AOE 296 | . 2 3 16 . . . 21 15 . . 20 . . 4 . . 1 7 27 . 30 . 3 50 10 10 10 . . 6 9 7 14 4 4 21 2 Classes Destroyed 35 | 3 6 . 5 . . . 2 1 . . 2 . . . 1 2 2 . . 1 1 1 1 2 . 1 . . . . 1 1 . 1 . . 1 Worker 116 | 2 2 2 25 . . 3 6 28 . . 16 . . . . . . . 12 . 3 . . . . 5 1 . . 3 1 3 . . 1 3 . Builder 74 | . 2 1 16 . . 1 2 12 1 . 9 . . . . . . . 7 . 7 . . . . 6 4 . . . . 2 2 . . 2 . Tunneler 19 | 7 . . 3 . . 2 . . . . 2 . . . . . . . 2 . 2 . . . . . 1 . . . . . . . . . . Hauler 32 | . 2 . 6 . . . 6 5 . . 1 . . . . . . . 4 . 3 . . . . 1 . . . 1 1 1 1 . . . . Recycler 83 | 1 3 . 14 . . 1 10 13 5 . 10 . . . . . . . 4 . 8 . . . . 7 1 . . 1 . . 2 . . 1 2 Minesweeper 2 | . . . . . . . . . . . . . . . . . . . . . . 2 . . . . . . . . . . . . . . . Mechanic 15 | . . . 2 . . . . 6 . . . . . . . . . . 1 . 2 . 1 . . . . . . . . 2 1 . . . . Operator 22 | . 1 . 4 . . . 3 1 . . 2 . . . . . . . . . . . . . . 2 . . 9 . . . . . . . . Drone 12 | . . . . . . . . . . . . . . . . . . . . . . . . . . . . . . . . . . 4 2 6 . Watcher 59 | . 3 . 5 . . . 5 2 . . 6 . . . . . . . 7 . 3 . . . . 5 1 1 . 3 4 2 4 1 3 4 . Swarmer 142 | . 3 6 10 . . . 19 . . . 12 . . 4 1 . . 7 9 . 1 2 1 15 4 . 5 . . 2 10 . 13 . 4 14 . Cutter 5 | . . . . . . . . . . . . . . . . . . . . . . . . . . 1 . . . 3 . . . . . . 1 Saboteur 6 | . . . . . . . . . . . 1 . . . . . . . 2 . . . . . . . 1 . . . . 1 . . . . 1 Grunt 301 | . 10 4 31 . . . 23 46 . . 16 . . 2 . . . 7 30 . 29 2 7 26 4 12 11 . . 5 5 15 8 3 . 1 4 Brawler 34 | . . . 5 . . . 2 6 1 . 1 . . . . . . 1 1 . 7 . 2 2 . 2 3 . . 1 . . . . . . . Duelist 19 | . . . 4 . . . 2 5 . . 1 . . . . . . . 1 . . 1 . 1 . . . . . 1 1 . . . . . 2 Protector 17 | . . . 1 . . . 2 4 . . 2 . . . . . . . 1 . 3 . . 2 . . 1 . . 1 . . . . . . . Researcher 1 | . . . . . . . . . . . . . . . . . . . . . . . . . . . . . . . . 1 . . . . . Sentry 77 | . . . 10 . . . 9 9 1 . 7 . . . . . . 1 1 . 4 . 2 . 1 6 7 . 2 3 4 . 4 . 4 1 1 Demolisher 3 | . . . . . . . . . . . . . . . . . . . . . 1 . . . . . 1 . . . 1 . . . . . . Specialist 5 | . . . . . . . 2 . . . . . . . . . . . . . 2 . . . . . 1 . . . . . . . . . . Hunter 50 | . . . . . . . . 2 . . 6 . . . . . . 2 2 . 8 . . 5 4 6 . . . 1 1 1 7 . 2 3 . Programmer 74 | . . . . . . . . . . . 7 . . . . . . . 2 . 9 1 . 3 1 11 7 . . 3 2 5 3 1 8 5 6 Heavy 2 | . . . . . . . 1 . . . . . . . . . . . . . 1 . . . . . . . . . . . . . . . . Behemoth 6 | . . . . . . . . . . . . . . . 1 . . 1 . . . . . 1 . . . . . . 1 . 2 . . . . Compactor 1 | . . . . . . . . . . . . . . . . . . . . 1 . . . . . . . . . . . . . . . . . Cetus Guard 2 | . . . . . . . . . . . . . . . . . . . . . . . . . . . . 2 . . . . . . . . . Hotshot 4 | . . . . . . . . . . . . . . . . . . . . . . . . . . . . . . . . . . . 4 . . Striker 6 | . . . . . . . . . . . . . . . . . . . . . . . . 4 . . . . . . . . . . . . 2 Executioner 6 | . . . . . . . . . . . . . . . . . . . . . . . . 4 . . . . . . . . . . . . 2 Alpha 7 2 | . . . . . . . . . . . . . . . . . . . . . . . . . . . . . . . . . . . . . 2 Zionite 3 | . . . . . . . . . . . . . . . . 3 . . . . . . . . . . . . . . . . . . . . . Z-Technician 5 | . . . . . . . . . . . . . . . . . 5 . . . . . . . . . . . . . . . . . . . . Z-Light 4 | . . . . . . . . . . . . . . . . . 4 . . . . . . . . . . . . . . . . . . . . Samaritan 1 | . . . . . . . . . . . . . . . . . . . . . . . 1 . . . . . . . . . . . . . . Assembled 3 | . . . . . . . . . . . . . . . . . 3 . . . . . . . . . . . . . . . . . . . . Surgeon 2 | . . . . . . . . . . . . . . . . . . . . . 2 . . . . . . . . . . . . . . . . Wasp 5 | . . . . . . . . . . . . . . . . . . . . 5 . . . . . . . . . . . . . . . . . Thug 2 | . . . . . . . . . . . . . . . . 1 . . . . . . . . . . 1 . . . . . . . . . . Savage 1 | . . . . . . . . . . . . . . . . . . . . . . . . . . . . 1 . . . . . . . . . Butcher 1 | . . . . . . . . . . . . . . . . . . . . . . . . 1 . . . . . . . . . . . . . Martyr 1 | . . . . . . . . . . . . . . . . . . . . . 1 . . . . . . . . . . . . . . . . Mutant 1 | . . . . . . . . . . . . . . . . 1 . . . . . . . . . . . . . . . . . . . . . Commander 1 | . . . . . . . . . . . . . . . . . . . . . . . . 1 . . . . . . . . . . . . . Revision 1 | . . . . . . . . . . . . . . . . . . . . . . . . . . . . . . . 1 . . . . . . Best Kill Streak 21 | 5 9 5 14 . . 3 13 8 7 . 15 . . 4 1 2 5 5 21 1 14 2 4 16 4 9 8 1 4 7 11 7 6 4 5 8 4 Combat Bots Only 16 | . 5 5 12 . . . 8 7 1 . 7 . . 4 1 1 3 5 13 1 13 2 4 16 4 4 6 1 1 6 9 6 6 4 4 6 4 Max Kills in Single Turn 11 | 1 3 3 4 . . 1 6 3 2 . 7 . . 4 1 1 5 5 6 3 7 1 3 11 3 5 4 1 2 3 4 4 4 4 4 5 3 Gunslinging 1 | . . . . . . . 1 1 . . . . . . . . . . 1 . 1 . . . . . 1 . . . . . . . . . . Exploded 11 | . 1 3 3 . . . 5 3 . . 3 . . 4 . . 1 5 5 . 6 . 3 11 2 2 3 . . 2 3 2 4 4 4 5 1 Melee 1 | . . . . . . . . . . . 1 . . . . . . . . . . . . . . . . . . . . 1 . . 1 1 . Uniques/NPCs Destroyed 1 | . . . . . . . . . . . . . . . . 1 . . . . . . . . . . . . . . . . . . . . . Imprinter (-6/Zion) Combat | -11 -10 -10 -9 -9 -9 -8 -8 -8 -8 -8 -6 -6 -6 -6 -6 -6 -6 -5 -5 -5 -5 -5 -5 -5 -4 -4 -4 -4 -4 -4 -3 -3 -2 -2 -2 -1 -1 -------- Run | Yrd Mat Min Mat Min Exi Min Mat Sto Rec Scr Fac Was Fac Low Low Zio Dee Pro Fac Was Fac Upp Upp War Pro Fac Ext Cet Arc Hub Res Tes Res Qua Frg Acc Com Hostile Shots Fired 3160 | . 58 32 163 . . . 160 213 15 . 298 . . 1 8 1 1 39 56 . 160 19 32 34 74 305 95 18 8 100 85 198 170 52 111 325 329 Missed 1160 | . 20 9 46 . . . 48 47 5 . 130 . . . 2 . . 14 16 . 59 13 10 18 50 138 32 5 2 51 33 89 56 17 30 118 102 Hits 2000 | . 38 23 117 . . . 112 166 10 . 168 . . 1 6 1 1 25 40 . 101 6 22 16 24 167 63 13 6 49 52 109 114 35 81 207 227 Melee 46 | . . . 9 . . . 1 12 4 . . . . . . . . . . . 1 . . . . 2 2 . . . 1 1 . . . . 13 Projectile 1954 | . 38 23 108 . . . 111 154 6 . 168 . . 1 6 1 1 25 40 . 100 6 22 16 24 165 61 13 6 49 51 108 114 35 81 207 214 AOE 24 | . . . . . . . . . . . . . . . . . . . . . 4 . . . . 1 2 . . 1 1 . . . . 13 2 Critical Strikes 105 | . . . 1 . . . 2 14 1 . 6 . . . . . . . 3 . 5 . 3 . . 8 8 2 . 5 1 10 3 1 9 10 13 Actively Blocked 10 | . . . . . . . . 4 . . . . . . . . . . . . . . . . . . . . . . . . . . 2 4 . Part Disruptions 7 | . . . . . . . . . . . . . . . . . . . . . 2 . . . . . . . . 2 . 1 . . . 2 . Damage Taken 37212 | . 404 330 1618 . . . 1887 2866 213 . 2269 . . 50 65 142 28 543 799 49 2177 73 465 549 409 3062 1443 427 198 1328 962 1334 1602 576 2216 3515 5613 Core 3714 | . 44 58 182 . . . 185 302 41 . 353 . . 13 23 28 . 67 169 . 211 . 59 84 41 208 141 65 . 189 11 43 157 23 117 265 635 Absorbed by Shields 3755 | . . . . . . . . . . . . . . . . . . . . . . 20 35 . . . 303 56 . . 432 673 1122 196 . 873 45 Redirected to Shielding 687 | . . . 9 . . . 41 191 . . 76 . . . . . . . . . . . . . . . . . . . 100 . . . 270 . . Ignored by Resistances 593 | . . . . . . . . . . . . . . . . . . . 17 . 106 27 45 40 44 . . . . . . 203 111 . . . . Regen/Repaired (Parts) 5964 | . . . . . . . 108 201 . . 396 74 . 23 13 84 . 166 62 77 92 . . 299 . 501 . . . . 634 895 23 363 948 883 122 Core Remaining (%) 52 | 100 . 59 . . . 54 . . . 4 . . . . . . . 43 . . . . . . 43 . . . . 47 . 95 . . 64 . 15 Volleys Fired 1843 | 24 65 27 196 . . 7 129 211 22 . 176 6 . 7 9 11 17 24 73 14 119 21 23 38 16 116 69 11 30 54 59 74 73 15 10 51 46 Largest 4 | 2 2 2 4 . . 4 4 4 2 . 4 4 . 4 4 4 4 4 4 4 4 4 4 4 4 4 4 4 4 4 4 4 4 4 2 3 4 Hottest 418 | 40 50 40 126 . . 120 120 110 73 . 168 168 . 168 168 168 168 168 149 149 149 132 149 153 149 159 159 144 136 166 163 163 163 300 300 416 418 Shots Fired 6171 | 48 130 53 764 . . 28 500 821 38 . 422 24 . 19 18 36 62 90 262 56 435 80 93 90 38 432 263 44 115 196 218 249 259 48 14 118 108 Gun 4592 | 48 127 52 351 . . . 257 804 16 . 40 . . . . . . 20 251 55 419 80 92 80 31 414 259 44 115 191 210 238 246 45 10 95 2 Cannon 1389 | . . . 404 . . 28 235 1 22 . 359 24 . 18 17 34 60 68 . . . . . . . . . . . . 1 . . 1 1 14 102 Launcher 187 | . 3 1 9 . . . 8 15 . . 23 . . 1 1 2 2 2 11 1 14 . 1 10 7 18 4 . . 5 7 11 13 2 3 9 4 Special 3 | . . . . . . . . 1 . . . . . . . . . . . . 2 . . . . . . . . . . . . . . . . Kinetic 5871 | 48 127 52 755 . . 28 492 805 38 . 399 24 . 18 17 34 60 88 251 55 419 80 92 44 25 407 247 37 115 186 211 238 246 45 10 106 72 Thermal 38 | . . . . . . . . 1 . . . . . . . . . . . . . . . . . . . . . . . . . 1 1 3 32 Explosive 177 | . 3 1 9 . . . 8 15 . . 23 . . 1 1 2 2 2 11 1 14 . 1 . 7 18 4 . . 5 7 11 13 2 3 9 4 Electromagnetic 5 | . . . . . . . . . . . . . . . . . . . . . . . . . . . . . . 5 . . . . . . . Entropic 78 | . . . . . . . . . . . . . . . . . . . . . . . . 46 6 7 12 7 . . . . . . . . . Robot Hit Streak 22 | 12 8 13 20 . . 6 20 22 6 . 9 14 . 4 4 9 9 11 10 8 9 5 9 7 15 21 11 8 6 10 11 11 18 6 4 13 21 Robot Miss Streak 12 | 2 3 4 8 . . 3 6 5 2 . 5 1 . 3 3 2 5 3 7 3 5 4 6 5 5 5 5 5 12 5 6 4 6 6 1 5 3 Penetration Max 3 | . . . . . . . . 1 1 . 1 . . 1 . . . . 1 . 2 . 1 1 1 1 3 1 1 2 1 1 1 1 . 2 2 Secondary Targets 70 | . 2 . 2 . . . 7 12 . . . . . . . . . . 9 . 7 1 1 3 . 3 7 1 . 2 4 3 4 . . 2 . Max Gunslinging Chain 2 | . 1 . 1 . . . 1 1 . . . . . . . . . . 2 . 2 1 1 1 . 1 2 1 . 1 1 1 1 . . 1 . Shots Hit Robots 3473 | 31 78 41 371 . . 10 291 504 25 . 219 16 . 8 5 18 23 58 155 36 231 34 45 63 20 232 142 29 52 110 100 134 162 23 55 87 65 Core Hits 2365 | 16 45 17 187 . . 7 144 238 9 . 188 5 . 6 3 13 13 38 196 21 316 14 37 106 56 130 96 23 28 59 62 71 94 14 29 54 30 Critical Kills 70 | . . 1 3 . . . . 4 . . . . . . . . . . 7 . 9 1 4 2 1 5 5 1 1 3 4 2 9 1 2 1 4 Critical Parts Destroyed 124 | 1 . . . . . . 3 4 . . . . . . . . . . 5 . 7 4 1 14 2 9 5 3 4 8 11 16 5 1 . 13 8 Critical Strikes 270 | 1 . 1 8 . . 1 5 8 1 . 29 2 . . 1 2 6 1 12 1 16 5 6 16 3 17 12 4 6 11 17 19 14 2 3 17 23 Meltdown 1 | . . . . . . . . . . . . . . . . . . . . . . . . . . . . . . . . . . . . . 1 Destroy 188 | 1 . 1 3 . . . 3 8 . . . . . . . . . . 12 1 16 5 6 7 2 16 10 1 6 11 17 18 14 2 2 14 12 Blast 61 | . . . 5 . . 1 2 . 1 . 29 2 . . 1 2 6 1 . . . . . . . . . . . . . . . . . 1 10 Sever 2 | . . . . . . . . . . . . . . . . . . . . . . . . . . . . . . . . . . . 1 1 . Impale 2 | . . . . . . . . . . . . . . . . . . . . . . . . . . . . . . . . 1 . . . 1 . Detonate 16 | . . . . . . . . . . . . . . . . . . . . . . . . 9 1 1 2 3 . . . . . . . . . Melee Attacks 155 | . . . . . . . . . . . . . . . . . . . 4 . 3 3 . 2 . 9 4 . . . 2 13 12 7 68 27 1 Impact . | . . . . . . . . . . . . . . . . . . . . . . . . . . . . . . . . . . . . . . Slashing 98 | . . . . . . . . . . . . . . . . . . . . . . . . . . . . . . . . . . 4 68 26 . Piercing 57 | . . . . . . . . . . . . . . . . . . . 4 . 3 3 . 2 . 9 4 . . . 2 13 12 3 . 1 1 Sneak Attacks 16 | . . . . . . . . . . . . . . . . . . . . . . . . . . . . . . . . 1 . . 10 4 1 Combat Hostiles 6 | . . . . . . . . . . . . . . . . . . . . . . . . . . . . . . . . . . . 5 1 . Follow-up Attacks 1 | . . . . . . . . . . . . . . . . . . . . . . . . . . . . . . . . . . . . 1 . Damage Inflicted 151243 | 365 1174 610 7091 . . 203 6464 10522 1039 . 10369 511 . 720 219 685 2961 2251 9368 1707 13115 867 2093 14207 1948 9744 7161 2053 1574 4793 5133 6137 6442 1256 5514 6772 6175 Guns 65845 | 365 826 529 2422 . . . 2807 8492 141 . 387 . . . . . . 332 4593 1054 7580 867 1574 2580 590 6244 4880 958 1574 3186 3327 4087 3709 706 89 1911 35 Cannons 22179 | . . . 3332 . . 203 2006 . 898 . 6176 511 . 385 219 539 697 1411 . . . . . . . . . . . . . . . . . 295 5507 Explosions 56323 | . 348 81 1337 . . . 1638 2030 . . 3806 . . 335 . 146 2264 508 4775 653 5535 . 519 11627 1358 3500 2281 1095 . 1607 1806 1960 2556 550 462 3106 440 Melee 6740 | . . . . . . . . . . . . . . . . . . . . . . . . . . . . . . . . 90 177 . 4963 1420 90 Ramming 156 | . . . . . . . 13 . . . . . . . . . . . . . . . . . . . . . . . . . . . . 40 103 Kinetic 81441 | 365 826 529 5754 . . 203 4813 8492 1039 . 6563 511 . 385 219 539 697 1743 4593 1054 7580 867 1574 859 473 6124 4239 724 1574 3089 3327 4087 3709 706 89 2206 1889 Thermal 9826 | . . . . . . . . . . . 231 . . . . . 2150 . . . . . . 2486 . 51 160 1095 . . . . . . . . 3653 Explosive 40223 | . 348 81 1337 . . . 1638 2030 . . 3037 . . 335 . 146 114 508 4775 653 5535 . 519 . 1323 3363 2083 . . 1522 1806 1956 2556 550 462 3106 440 Electromagnetic 883 | . . . . . . . . . . . 538 . . . . . . . . . . . . . 35 86 38 . . 182 . 4 . . . . . Impact . | . . . . . . . . . . . . . . . . . . . . . . . . . . . . . . . . . . . . . . Slashing 6357 | . . . . . . . . . . . . . . . . . . . . . . . . . . . . . . . . . . . 4963 1394 . Piercing 383 | . . . . . . . . . . . . . . . . . . . . . . . . . . . . . . . . 90 177 . . 26 90 Entropic 11974 | . . . . . . . . . . . . . . . . . . . . . . . . 10862 117 120 641 234 . . . . . . . . . Highest Corruption 21 | . . . . . . . . 1 10 . . . . . . . . . . . 3 3 3 3 3 13 18 21 21 11 . 2 3 4 4 4 3 Average Corruption 4 | . . . . . . . . 1 5 . . . . . . . . . . . 1 3 3 1 1 6 14 19 11 1 . 1 2 3 1 1 2 Corruption Purged 44 | . . . . . . . . . . . . . . . . . . . . . . . . . . 5 . . 20 . . . . 5 1 7 6 Corruption Blocked . | . . . . . . . . . . . . . . . . . . . . . . . . . . . . . . . . . . . . . . Effects 278 | . . . . . . . . 13 21 . . . . . . . . . . . 20 19 14 5 6 66 43 20 23 6 . 2 3 6 6 3 2 Message Errors 64 | . . . . . . . . 2 5 . . . . . . . . . . . 6 5 4 2 3 15 11 3 4 1 . . 1 1 . . 1 Matter Fused 62 | . . . . . . . . 3 6 . . . . . . . . . . . 5 6 4 1 2 9 8 1 6 3 . . . 3 4 . 1 Heat Flow Errors 25 | . . . . . . . . . 2 . . . . . . . . . . . 3 2 1 . 1 6 5 2 2 . . 1 . . . . . Energy Discharges 22 | . . . . . . . . 2 1 . . . . . . . . . . . 1 . 1 1 . 7 5 2 . . . . . 1 . 1 . Parts Rejected 5 | . . . . . . . . . . . . . . . . . . . . . 1 . . . . 3 . . 1 . . . . . . . . Parts Fused 3 | . . . . . . . . . . . . . . . . . . . . . . 1 . . . 1 1 . . . . . . . . . . Data Loss (minor) 35 | . . . . . . . . 2 4 . . . . . . . . . . . 1 3 3 1 . 4 4 5 2 . . 1 2 . 1 2 . Data Loss (major) 13 | . . . . . . . . 2 1 . . . . . . . . . . . . 1 . . . 5 . 1 1 1 . . . 1 . . . Misfires 15 | . . . . . . . . 2 . . . . . . . . . . . . 2 . 1 . . 5 1 2 . 1 . . . . 1 . . Alerts 9 | . . . . . . . . . 2 . . . . . . . . . . . . . . . . 3 1 2 1 . . . . . . . . Misdirections 5 | . . . . . . . . . . . . . . . . . . . . . . . . . . 1 3 . 1 . . . . . . . . Weapon Failures 20 | . . . . . . . . . . . . . . . . . . . . . 1 1 . . . 7 4 2 5 . . . . . . . . Overload Shots . | . . . . . . . . . . . . . . . . . . . . . . . . . . . . . . . . . . . . . . Overflow Damage 5438 | . . . 108 . . 8 62 . 110 . 336 . . 4 . 9 432 21 248 . 104 . 4 404 . 312 204 50 . 2 100 327 173 93 754 737 836 Projectiles 1222 | . . . 55 . . 8 44 . 110 . 234 . . . . . 10 1 . . . . . . . . . . . . . . . . . 3 757 Explosions 2900 | . . . 53 . . . 18 . . . 102 . . 4 . 9 422 20 248 . 104 . 4 404 . 312 204 50 . 2 100 187 173 93 . 372 19 Melee 1316 | . . . . . . . . . . . . . . . . . . . . . . . . . . . . . . . . 140 . . 754 362 60 Knockbacks 144 | . . . 28 . . 1 13 . 2 . 56 . . 3 . 10 3 9 . . . . . . . . . . . . . . . . . 2 17 Impact 2 | . . . . . . . 1 . . . . . . . . . . . . . . . . . . . . . . . . . . . . . 1 Kinetic 136 | . . . 28 . . 1 11 . 2 . 53 . . 3 . 10 3 8 . . . . . . . . . . . . . . . . . 2 15 Secondary 6 | . . . . . . . 1 . . . 3 . . . . . . 1 . . . . . . . . . . . . . . . . . . 1 Self-Inflicted Damage 862 | . . . 29 . . . 1 12 . . 10 . . . . 41 . . 44 50 97 . 27 . 58 36 55 . . 156 . . . . . 20 226 Shots 23 | . . . 1 . . . 1 1 . . 1 . . . . 1 . . 2 2 4 . 1 . 3 1 1 . . 2 . . . . . . 2 Rammed 6 | . . . . . . . 1 . . . . . . . . . . . . . . . . . . . . . . . . . . . . 2 3 Targets Rammed 6 | . . . . . . . 1 . . . . . . . . . . . . . . . . . . . . . . . . . . . . 2 3 Kicked . | . . . . . . . . . . . . . . . . . . . . . . . . . . . . . . . . . . . . . . Crushed . | . . . . . . . . . . . . . . . . . . . . . . . . . . . . . . . . . . . . . . Highest Temperature 575 | . 18 9 477 . . 130 188 198 218 . 331 7 . 121 7 16 49 86 66 30 255 235 348 15 202 349 198 198 249 225 61 53 . 160 . 63 575 Average Temperature 55 | . 6 4 72 . . 54 46 36 92 . 51 6 . 58 6 10 19 30 15 13 27 27 122 7 111 79 48 98 41 74 11 13 . 87 . 31 184 Received Heat Transfer 6163 | . 147 177 552 . . . 657 1269 45 . 517 . . 9 . 9 9 48 261 . 415 . 164 45 18 192 90 . 9 75 42 217 189 36 387 62 522 Effects 11 | . . . 3 . . . . . . . 1 . . . . . . . . . . . . . . 1 . . . 3 . . . . . . 3 Shutdowns 4 | . . . 1 . . . . . . . 1 . . . . . . . . . . . . . . 1 . . . . . . . . . . 1 Energy Bleed 1 | . . . 1 . . . . . . . . . . . . . . . . . . . . . . . . . . . . . . . . . . Interference 3 | . . . . . . . . . . . . . . . . . . . . . . . . . . . . . . 3 . . . . . . . Matter Decay 2 | . . . . . . . . . . . . . . . . . . . . . . . . . . . . . . . . . . . . . 2 Short Circuit 1 | . . . 1 . . . . . . . . . . . . . . . . . . . . . . . . . . . . . . . . . . Siege Activations . | . . . . . . . . . . . . . . . . . . . . . . . . . . . . . . . . . . . . . . Martial Activations . | . . . . . . . . . . . . . . . . . . . . . . . . . . . . . . . . . . . . . . Shielding Activations . | . . . . . . . . . . . . . . . . . . . . . . . . . . . . . . . . . . . . . . Robots Disrupted . | . . . . . . . . . . . . . . . . . . . . . . . . . . . . . . . . . . . . . . Combat Hostiles . | . . . . . . . . . . . . . . . . . . . . . . . . . . . . . . . . . . . . . . Robots Corrupted . | . . . . . . . . . . . . . . . . . . . . . . . . . . . . . . . . . . . . . . Combat Hostiles . | . . . . . . . . . . . . . . . . . . . . . . . . . . . . . . . . . . . . . . Parts Fried 8 | . . . . . . . . . . . 6 . . . . . . . . . 1 . . . . 1 . . . . . . . . . . . Impact Corruptions . | . . . . . . . . . . . . . . . . . . . . . . . . . . . . . . . . . . . . . . Robots Melted 1 | . . . . . . . . . . . . . . . . . . . . . . . . . . . . . . . . . . . . . 1 Combat Hostiles 1 | . . . . . . . . . . . . . . . . . . . . . . . . . . . . . . . . . . . . . 1 Parts Melted 10 | . . . . . . . . . . . . . . . . . . 2 1 . 2 . . 2 . . . . . 1 1 . . . . . 1 Heat Transferred 3092 | . . . . . . . . . . . 200 . . . . . . . . . . . . 1450 . 50 100 700 . . . . . . . . 592 Parts Sabotaged 4 | . . . . . . . . . . . . . . . . . . . . . . . . . . . . . . . . 4 . . . . . Parts Stolen . | . . . . . . . . . . . . . . . . . . . . . . . . . . . . . . . . . . . . . . Parts Stripped . | . . . . . . . . . . . . . . . . . . . . . . . . . . . . . . . . . . . . . . Power Chain Reactions 3 | . . . . . . . . . . . 3 . . . . . . . . . . . . . . . . . . . . . . . . . . Alert | -11 -10 -10 -9 -9 -9 -8 -8 -8 -8 -8 -6 -6 -6 -6 -6 -6 -6 -5 -5 -5 -5 -5 -5 -5 -4 -4 -4 -4 -4 -4 -3 -3 -2 -2 -2 -1 -1 ------- Run | Yrd Mat Min Mat Min Exi Min Mat Sto Rec Scr Fac Was Fac Low Low Zio Dee Pro Fac Was Fac Upp Upp War Pro Fac Ext Cet Arc Hub Res Tes Res Qua Frg Acc Com Maximum Alert Level 5 | . 1 . 4 2 . . 4 5 4 . 5 3 2 . . . . . 5 4 5 . . . . 5 5 4 3 4 3 4 4 3 2 4 4 Low Security (%) 19 | 100 86 100 30 . . 100 29 . . . 22 . . . . . . . . . . . . . . 34 . . . . . 3 . . . . . Level 1 9 | . 13 . 22 . . . 12 . . . 4 . 67 . . . . . 1 . . . . . . 6 . . . 10 8 21 20 . 59 13 . Level 2 20 | . . . 17 100 . . 25 36 . . 5 63 32 . . . . . 14 . . . . . . 14 . . 75 27 44 38 5 84 40 34 . Level 3 20 | . . . 13 . . . 19 20 94 . 18 36 . . . . . . 20 17 11 . . . . 10 15 . 24 35 46 27 67 15 . 20 43 Level 4 17 | . . . 16 . . . 13 23 5 . 24 . . . . . . . 44 82 14 . . . . 5 60 100 . 27 . 9 5 . . 32 56 Level 5 9 | . . . . . . . . 16 . . 25 . . . . . . . 16 . 41 . . . . 19 18 . . . . . . . . . . High Security 2 | . . . . . . . . 3 . . . . . . . . . . 2 . 33 . . . . 8 4 . . . . . . . . . . Max Security . | . . . . . . . . . . . . . . . . . . . . . . . . . . . . . . . . . . . . . . Sterilizations 3 | . . . 1 . . . 1 . . . . . . . . . . . . . 1 . . . . . . . . . . . . . . . . Peak Influence 6739 | 15 260 168 1444 558 . 15 1283 2130 1104 . 2154 753 415 . . . . . 2218 1162 6739 . . . . 1961 2430 1449 748 1560 829 1342 1157 732 535 1447 1583 Initial 1360 | . . 53 16 558 . . . 532 1100 . . 753 415 . . . . . 415 1100 778 . . . . 52 1100 1360 560 216 810 434 754 647 380 308 921 Average 874 | 2 108 38 538 550 . 1 507 1065 958 . 1051 674 393 . . . . . 1144 1122 3307 . . . . 804 1415 1395 658 817 635 606 731 615 385 832 1154 Influence Increases 41817 | 50 510 275 2189 . . 35 1911 2644 115 . 3487 1 14 680 222 . . 1175 2407 122 7005 237 303 1214 310 2897 2382 339 348 1772 1244 1896 1835 473 884 1637 1204 Destroy 0b10 Robot/C 18440 | . 260 200 1200 . . . 1160 1360 40 . 1480 . . 300 100 . . 560 1080 . 2400 140 240 1200 280 1000 1000 160 80 560 520 700 780 160 420 600 460 Destroy 0b10 Robot/NC 2375 | 50 65 15 380 . . 35 170 365 35 . 265 . . . . . . . 190 . 220 10 5 10 . 150 55 10 45 50 30 70 55 5 30 50 10 Destroy Leader 3146 | . 60 40 292 . . . 252 294 . . 356 . . 40 20 . . 70 172 . 400 10 10 . 30 252 94 . . 130 140 78 130 12 86 108 70 Allied During Kill 5098 | . . . . . . . . . . . 158 . . 340 102 . . 545 256 . 2300 2 18 4 . 42 847 91 87 227 16 34 12 . . . 17 Trap Triggered on 0b10 30 | . . . . . . . . . . . . . . . . . . . . . . . . . . . . . . . . . . . 30 . . Successful Hack 1308 | . 56 . 20 . . . 21 31 31 . 164 . 14 . . . . . 6 . 42 . . . . 120 8 . . 4 127 114 102 95 50 183 120 Select Force Hacks 310 | . 30 . 90 . . . 30 30 . . 70 . . . . . . . . . . . . . . . . . . . 60 . . . . . . Disable Machine 2520 | . 15 . 75 . . . 120 180 . . 540 . . . . . . . 210 . 180 . . . . 405 75 . 90 195 15 180 60 45 30 45 60 Anti-Garrison Action 450 | . . . . . . . . 150 . . . . . . . . . . . . 150 . . . . . . . . 150 . . . . . . . Destroy Structure 5260 | . 9 5 57 . . . 53 114 9 . 319 1 . . . . . . 478 122 1028 . . . . 538 138 78 46 366 246 300 426 96 103 321 407 Partial Spotted 465 | . . . . . . . . . . . 75 . . . . . . . . . 90 . . . . 15 30 . . 15 15 60 60 . 60 30 15 Lose Combat Pursuer 2415 | . 15 15 75 . . . 105 120 . . 60 . . . . . . . 15 . 195 75 30 . . 375 135 . . 75 75 360 210 60 75 300 45 Influence Decreases 41078 | 50 372 369 802 893 538 35 650 1785 1704 805 1333 1561 239 535 593 143 . 514 850 1552 1378 2950 1192 3691 886 1020 2053 1368 1131 846 2016 1326 2026 948 1046 710 1168 Entered New Map 21922 | . . 85 28 873 538 . . 729 1294 805 . 1401 179 137 99 143 . . 246 1442 334 2494 766 3137 660 32 1001 1070 841 402 734 338 588 504 296 206 520 Time Decay 11949 | 50 372 284 714 20 . 35 620 766 380 . 606 160 60 398 464 . . 454 404 110 434 416 356 244 206 618 342 198 270 254 502 478 458 214 380 404 278 Lost Part 1650 | . . . 60 . . . 30 140 30 . 90 . . . 10 . . . 10 . 110 . 30 20 20 180 150 40 20 70 20 30 70 30 60 100 330 Lost Ally 1807 | . . . . . . . . . . . 37 . . . 20 . . 60 190 . 350 40 40 290 . 40 260 60 . 120 10 30 160 50 10 . 40 Purge Threat 3750 | . . . . . . . . 150 . . 600 . . . . . . . . . 150 . . . . 150 300 . . . 750 450 750 150 300 . . Squads Dispatched 251 | . 2 . 13 . . . 7 22 . . 39 . . . . . . 1 13 . 35 . 1 . . 30 7 . . 11 14 16 12 6 4 11 7 Investigation 70 | . 1 . 6 . . . 2 6 . . 17 . . . . . . 1 1 . 6 . . . . 9 . . . 1 10 3 4 . . 2 1 Extermination 37 | . . . . . . . . . . . 8 . . . . . . . 1 . 2 . . . . 5 . . . 2 . 4 3 2 3 5 2 Reinforcement 58 | . 1 . 3 . . . 3 3 . . 5 . . . . . . . 6 . 3 . . . . 6 3 . . 5 4 7 2 3 1 1 2 Assault 75 | . . . 4 . . . 2 13 . . 6 . . . . . . . 5 . 20 . 1 . . 8 4 . . 2 . 2 2 1 . 3 2 Garrison 11 | . . . . . . . . . . . 3 . . . . . . . . . 4 . . . . 2 . . . 1 . . 1 . . . . Intercept . | . . . . . . . . . . . . . . . . . . . . . . . . . . . . . . . . . . . . . . Searches Triggered . | . . . . . . . . . . . . . . . . . . . . . . . . . . . . . . . . . . . . . . Construction Impeded 17 | . . . 1 . . . . 2 . . 4 . . . . . . . 3 . 1 . . . . 1 2 . . 1 . . . 1 1 . . Haulers Reinforced 10 | . . . . . . . . . . . . . . . . . . . 3 . . . . . . 1 . . . 2 2 1 1 . . . . Active Scanning Responses . | . . . . . . . . . . . . . . . . . . . . . . . . . . . . . . . . . . . . . . Cargo Convoy Interrupts 2 | . . . . . . . . . . . . . . . . . . . . . 1 . . . . 1 . . . . . . . . . . . Stealth | -11 -10 -10 -9 -9 -9 -8 -8 -8 -8 -8 -6 -6 -6 -6 -6 -6 -6 -5 -5 -5 -5 -5 -5 -5 -4 -4 -4 -4 -4 -4 -3 -3 -2 -2 -2 -1 -1 --------- Run | Yrd Mat Min Mat Min Exi Min Mat Sto Rec Scr Fac Was Fac Low Low Zio Dee Pro Fac Was Fac Upp Upp War Pro Fac Ext Cet Arc Hub Res Tes Res Qua Frg Acc Com Distress Signals 63 | . . 1 3 . . . 3 2 . . 4 . . . . . . . 1 . 3 . . 2 . 5 2 2 1 7 10 4 5 . 2 1 5 Communications Jammed . | . . . . . . . . . . . . . . . . . . . . . . . . . . . . . . . . . . . . . . Distress Signals . | . . . . . . . . . . . . . . . . . . . . . . . . . . . . . . . . . . . . . . Times Spotted 1376 | . 22 11 78 . . . 77 101 2 . 92 . . 14 8 37 11 28 59 6 138 17 13 84 12 90 70 10 12 43 48 64 56 22 34 70 47 Peak Tracking Total 18 | . 6 3 10 . . . 9 9 1 . 7 . . 4 4 8 4 7 9 2 12 6 7 18 4 8 16 5 2 6 9 12 10 10 6 12 11 Tactical Retreats 84 | . 1 1 5 . . . 5 6 . . 2 . . . . . . . 1 . 5 4 2 . . 13 5 . . 3 1 6 6 2 3 10 3 Traps | -11 -10 -10 -9 -9 -9 -8 -8 -8 -8 -8 -6 -6 -6 -6 -6 -6 -6 -5 -5 -5 -5 -5 -5 -5 -4 -4 -4 -4 -4 -4 -3 -3 -2 -2 -2 -1 -1 ------- Run | Yrd Mat Min Mat Min Exi Min Mat Sto Rec Scr Fac Was Fac Low Low Zio Dee Pro Fac Was Fac Upp Upp War Pro Fac Ext Cet Arc Hub Res Tes Res Qua Frg Acc Com Traps Triggered 20 | . 1 . 1 . . . . . . . 5 . . . . . . . 1 . . . . . . 2 4 . . . . 1 1 . . 3 1 Indirectly 4 | . . . . . . . . . . . 4 . . . . . . . . . . . . . . . . . . . . . . . . . . Trap Hack Attempts . | . . . . . . . . . . . . . . . . . . . . . . . . . . . . . . . . . . . . . . Triggered . | . . . . . . . . . . . . . . . . . . . . . . . . . . . . . . . . . . . . . . Disarmed . | . . . . . . . . . . . . . . . . . . . . . . . . . . . . . . . . . . . . . . Reprogrammed 37 | . . . . . . . . . . . 11 . . . . . . . . . . . . . . . . . . . 16 . 4 . 6 . . Reused 9 | . . . . . . . . . . . . . . . . . . . . . . 6 . . . . . . . . . . . . 3 . . Traps Extracted . | . . . . . . . . . . . . . . . . . . . . . . . . . . . . . . . . . . . . . . Installed 13 | . . . . . . . . . . . . . . . . . . . . . . 8 . 5 . . . . . . . . . . . . . Triggered 9 | . . . . . . . . . . . . . . . . . . . . . . 6 . . . . . . . . . . . . 3 . . Most Traps Carried 4 | . . . . . . . . . . . . . . . . . . . . . . 4 . . . . . . . . . . . . . . . Machines | -11 -10 -10 -9 -9 -9 -8 -8 -8 -8 -8 -6 -6 -6 -6 -6 -6 -6 -5 -5 -5 -5 -5 -5 -5 -4 -4 -4 -4 -4 -4 -3 -3 -2 -2 -2 -1 -1 ---------- Run | Yrd Mat Min Mat Min Exi Min Mat Sto Rec Scr Fac Was Fac Low Low Zio Dee Pro Fac Was Fac Upp Upp War Pro Fac Ext Cet Arc Hub Res Tes Res Qua Frg Acc Com Machines Disabled 187 | . 1 . 6 . . . 9 13 . . 36 . . 1 . 3 3 2 14 . 13 . . 1 . 27 8 . 6 14 1 13 4 3 2 3 4 Max in Single Turn 6 | . 1 . 2 . . . 2 1 . . 3 . . 1 . 1 2 1 3 . 2 . . 1 . 5 1 . 2 6 1 1 1 1 2 1 1 Garrison Access 11 | . . . . . . . . 1 . . 1 . 1 . . . . . . . 1 . . . . 2 . . . 1 2 . 1 . . 1 . Network Hub 2 | . . . . . . . . . . . . . . . . . . . . . . . . . . . . . . 2 . . . . . . . Energy Cycler 1 | . . . . . . . . . . . . . . . . . . . . . . . . . . . 1 . . . . . . . . . . Machines Repaired . | . . . . . . . . . . . . . . . . . . . . . . . . . . . . . . . . . . . . . . Machines Dismantled 9 | . . . . . . . . 8 . . . . . . . . . 1 . . . . . . . . . . . . . . . . . . . Machines Sabotaged . | . . . . . . . . . . . . . . . . . . . . . . . . . . . . . . . . . . . . . . Overloaded Fab Kills . | . . . . . . . . . . . . . . . . . . . . . . . . . . . . . . . . . . . . . . Hacking | -11 -10 -10 -9 -9 -9 -8 -8 -8 -8 -8 -6 -6 -6 -6 -6 -6 -6 -5 -5 -5 -5 -5 -5 -5 -4 -4 -4 -4 -4 -4 -3 -3 -2 -2 -2 -1 -1 --------- Run | Yrd Mat Min Mat Min Exi Min Mat Sto Rec Scr Fac Was Fac Low Low Zio Dee Pro Fac Was Fac Upp Upp War Pro Fac Ext Cet Arc Hub Res Tes Res Qua Frg Acc Com Machines Accessed 241 | . 8 . 12 . 1 1 16 15 8 1 38 . 3 1 1 . . 1 1 . 13 . . 1 . 26 9 1 . 6 21 15 12 7 4 13 6 Terminals 142 | . 7 . 8 . . 1 12 10 6 . 18 . 2 . . . . 1 . . 4 . . . . 10 9 1 . 5 7 10 9 5 3 8 6 Fabricators 13 | . . . . . . . . . . . 6 . . . . . . . . . . . . . . 2 . . . . 3 2 . . . . . Repair Stations 15 | . . . . . . . 1 2 . . 2 . . . . . . . . . . . . . . 4 . . . . 1 2 . 1 . 2 . Recycling Units 34 | . 1 . 2 . . . 1 2 2 . 8 . . . . . . . . . 5 . . . . 7 . . . . 5 . . . . 1 . Scanalyzers 16 | . . . 2 . . . 1 . . . 2 . . . . . . . . . 2 . . . . 1 . . . . 3 1 1 1 1 1 . Garrison Access 16 | . . . . . . . 1 1 . . 2 . 1 . . . . . 1 . 2 . . . . 2 . . . 1 2 . 2 . . 1 . Total Hacks 1112 | . 24 . 44 . 1 1 57 52 37 6 166 . 8 1 1 . . 3 6 . 33 . . 1 . 105 22 1 . 27 149 130 97 49 35 31 25 Successful 666 | . 14 . 29 . 1 . 43 24 19 6 111 . 3 1 1 . . 3 3 . 19 . . 1 . 65 9 1 . 25 106 72 42 30 13 15 10 Failed 443 | . 10 . 15 . . 1 13 28 18 . 55 . 5 . . . . . 3 . 14 . . . . 40 13 . . 2 42 58 55 18 22 16 15 Catastrophic 42 | . 1 . . . . . . 3 . . 3 . 1 . . . . . . . 1 . . . . 6 . . . . 2 3 9 1 5 5 2 Database Lockouts 3 | . . . . . . . 1 . . . . . . . . . . . . . . . . . . . . . . . 1 . . 1 . . . Manual 645 | . 24 . 29 . . 1 41 36 27 . 112 . 6 . . 5 . . 6 . 21 . . 3 . 58 7 1 . 19 88 33 55 24 25 15 9 Terminals 687 | . 23 . 25 . . 1 38 33 28 . 87 . 6 . . . . 3 . . 13 . . . . 43 22 1 . 21 73 78 76 39 32 20 25 Fabricators 51 | . . . . . . . . . . . 20 . . . . . . . . . . . . . . 6 . . . . 14 11 . . . . . Repair Stations 102 | . . . . . . . 3 8 . . 8 . . . . . . . . . . . . . . 19 . . . . 17 35 . 7 . 5 . Recycling Units 102 | . 1 . 4 . . . 3 7 9 . 29 . . . . . . . . . 7 . . . . 26 . . . . 13 . . . . 3 . Scanalyzers 105 | . . . 15 . . . 10 . . . 14 . . . . . . . . . 8 . . . . 8 . . . . 30 6 6 3 3 2 . Garrison Access 55 | . . . . . . . 3 4 . . 8 . 2 . . . . . 6 . 5 . . . . 3 . . . 6 2 . 15 . . 1 . Terminal Hacks 209 | . 3 . 3 . 1 . 10 4 3 6 23 . 2 1 1 . . 3 . . 2 . . 1 . 13 7 1 . 11 31 29 20 12 10 6 6 Record 8 | . . . . . 1 . . . . . . . . . . . . 3 . . . . . . . . . . . 1 . . 1 1 . . 1 Part Schematic 3 | . . . . . . . . . 1 . 1 . . . . . . . . . . . . . . 1 . . . . . . . . . . . Robot Analysis 38 | . 3 . 2 . . . 5 1 1 6 3 . 1 . . . . . . . . . . . . . . . . 1 6 5 . 2 1 . 1 Prototype ID Bank 9 | . . . 1 . . . . 1 . . 2 . . . . . . . . . . . . . . . . . . . 1 1 1 1 1 . . Open Door 16 | . . . . . . . . 1 . . . . . 1 1 . . . . . . . . 1 . 2 5 1 . . . 1 . . . 3 . Level Access Points 4 | . . . . . . . . . . . . . . . . . . . . . . . . . . . . . . 1 . . 1 . 1 . 1 Branch Access Points 4 | . . . . . . . 1 . . . 1 . . . . . . . . . . . . . . . . . . . 1 . 1 . . . . Emergency Access Points 5 | . . . . . . . 1 . . . . . . . . . . . . . . . . . . . . . . . . . 2 1 . . 1 Machine Index 1 | . . . . . . . . . . . . . . . . . . . . . . . . . . . . . . . . . . 1 . . . Terminal Index 11 | . . . . . . . 1 . 1 . 2 . . . . . . . . . 1 . . . . 1 . . . 1 . 1 1 . 1 1 . Fabricator Index 1 | . . . . . . . . . . . . . . . . . . . . . . . . . . 1 . . . . . . . . . . . Repair Station Index 1 | . . . . . . . . . . . . . . . . . . . . . . . . . . . . . . . . . . . . 1 . Recycling Unit Index 1 | . . . . . . . . . . . . . . . . . . . . . . . . . . . . . . 1 . . . . . . . Scanalyzer Index 2 | . . . . . . . . . . . . . . . . . . . . . . . . . . 1 . . . . 1 . . . . . . Alert Level 12 | . . . . . . . . . . . 2 . . . . . . . . . . . . . . 1 . . . . 2 2 4 . 1 . . Unreport Threat 25 | . . . . . . . . 1 . . 4 . . . . . . . . . 1 . . . . 1 2 . . . 5 3 5 1 2 . . Locate Traps 12 | . . . . . . . 2 . . . 3 . . . . . . . . . . . . . . 2 . . . . 2 1 . 1 . . 1 Reprogram Traps 7 | . . . . . . . . . . . 2 . . . . . . . . . . . . . . . . . . . 3 . 1 . 1 . . Dispatch Records 3 | . . . . . . . . . . . . . . . . . . . . . . . . . . . . . . . 1 1 . . 1 . . Security Status 1 | . . . . . . . . . . . . . . . . . . . . . . . . . . . . . . . 1 . . . . . . Transport Status 1 | . . . . . . . . . . . . . . . . . . . . . . . . . . . . . . . 1 . . . . . . Recall Investigation 3 | . . . . . . . . . . . 2 . . . . . . . . . . . . . . . . . . . 1 . . . . . . Recall Extermination 4 | . . . . . . . . . . . . . 1 . . . . . . . . . . . . . . . . 1 . 1 1 . . . . Recall Reinforcements 7 | . . . . . . . . . . . 1 . . . . . . . . . . . . . . 1 . . . 2 2 1 . . . . . Recall Assault 1 | . . . . . . . . . . . . . . . . . . . . . . . . . . . . . . . . 1 . . . . . Hauler Manifests 1 | . . . . . . . . . . . . . . . . . . . . . . . . . . . . . . . 1 . . . . . . Registered Components 2 | . . . . . . . . . . . . . . . . . . . . . . . . . . . . . . . . 1 1 . . . . Registered Prototypes 2 | . . . . . . . . . . . . . . . . . . . . . . . . . . . . . . . . 1 . . 1 . . Zone Layout 17 | . . . . . . . . . . . . . . . . . . . . . . . . . . 2 . . . 3 3 3 1 4 . 1 . Protovariant Controls 6 | . . . . . . . . . . . . . . . . . . . . . . . . . . . . . . . . 6 . . . . . Disengage Seal 1 | . . . . . . . . . . . . . . . . . . . . . . . . . . . . . . . . . . . . . 1 Fabricator Hacks 8 | . . . . . . . . . . . 4 . . . . . . . . . . . . . . 1 . . . . 1 2 . . . . . Network Status 6 | . . . . . . . . . . . 2 . . . . . . . . . . . . . . 1 . . . . 1 2 . . . . . Load Schematic 1 | . . . . . . . . . . . 1 . . . . . . . . . . . . . . . . . . . . . . . . . . Build 1 | . . . . . . . . . . . 1 . . . . . . . . . . . . . . . . . . . . . . . . . . Repair Station Hacks 59 | . . . . . . . 1 5 . . 6 . . . . . . . . . . . . . . 9 . . . . 11 22 . 5 . . . Scan Component 35 | . . . . . . . 1 3 . . 3 . . . . . . . . . . . . . . 6 . . . . 6 13 . 3 . . . Repair 24 | . . . . . . . . 2 . . 3 . . . . . . . . . . . . . . 3 . . . . 5 9 . 2 . . . Recycling Unit Hacks 13 | . . . . . . . 1 . 2 . 8 . . . . . . . . . . . . . . 2 . . . . . . . . . . . Process 2 | . . . . . . . . . . . 2 . . . . . . . . . . . . . . . . . . . . . . . . . . Report Inventory 4 | . . . . . . . . . . . 4 . . . . . . . . . . . . . . . . . . . . . . . . . . Retrieve Matter 2 | . . . . . . . . . . . 2 . . . . . . . . . . . . . . . . . . . . . . . . . . Retrieve Components 5 | . . . . . . . 1 . 2 . . . . . . . . . . . . . . . . 2 . . . . . . . . . . . Scanalyzer 78 | . . . 14 . . . 8 . . . 13 . . . . . . . . . 7 . . . . 1 . . . . 23 5 5 2 . . . Insert Component 36 | . . . 6 . . . 4 . . . 6 . . . . . . . . . 4 . . . . 1 . . . . 10 2 2 1 . . . Analyze 42 | . . . 8 . . . 4 . . . 7 . . . . . . . . . 3 . . . . . . . . . 13 3 3 1 . . . Garrison Access Hacks 9 | . . . . . . . . . . . 1 . 1 . . . . . . . . . . . . 2 . . . 1 2 . 1 . . 1 . Unlock Access 1 | . . . . . . . . . . . . . . . . . . . . . . . . . . . . . . 1 . . . . . . . Seal Access 8 | . . . . . . . . . . . 1 . 1 . . . . . . . . . . . . 2 . . . . 2 . 1 . . 1 . Unauthorized Hacks 290 | . 11 . 12 . . . 23 15 14 . 56 . . . . . . . 3 . 10 . . . . 37 2 . . 13 38 14 16 11 3 8 4 Terminals 160 | . 10 . 8 . . . 19 10 9 . 25 . . . . . . . . . 3 . . . . 14 2 . . 9 15 5 11 10 3 3 4 Track 1 | . . . . . . . . . . . 1 . . . . . . . . . . . . . . . . . . . . . . . . . . Assimilate 8 | . . . . . . . . . . . 2 . . . . . . . . . . . . . . 1 . . . . 1 2 . 1 1 . . Botnet 70 | . 5 . 2 . . . 7 4 4 . 10 . . . . . . . . . 2 . . . . 5 2 . . 3 4 3 5 5 2 3 4 Disrupt 5 | . . . . . . . . . . . . . . . . . . . . . . . . . . 2 . . . 1 2 . . . . . . Operators 5 | . . . . . . . . . . . 1 . . . . . . . . . . . . . . 1 . . . . 2 . . 1 . . . Skim 68 | . 5 . 5 . . . 11 5 5 . 11 . . . . . . . . . 1 . . . . 5 . . . 5 6 . 6 3 . . . Sabotage 3 | . . . 1 . . . 1 1 . . . . . . . . . . . . . . . . . . . . . . . . . . . . . Fabricators 26 | . . . . . . . . . . . 8 . . . . . . . . . . . . . . 3 . . . . 9 6 . . . . . Report 6 | . . . . . . . . . . . 2 . . . . . . . . . . . . . . 1 . . . . 2 1 . . . . . Liberate 6 | . . . . . . . . . . . 1 . . . . . . . . . . . . . . . . . . . 3 2 . . . . . Fabnet 8 | . . . . . . . . . . . 2 . . . . . . . . . . . . . . 1 . . . . 3 2 . . . . . Haulers 4 | . . . . . . . . . . . 1 . . . . . . . . . . . . . . 1 . . . . 1 1 . . . . . Download 2 | . . . . . . . . . . . 2 . . . . . . . . . . . . . . . . . . . . . . . . . . Repair Stations 13 | . . . . . . . 1 2 . . 2 . . . . . . . . . . . . . . 2 . . . . 1 3 . . . 2 . Mechanics 3 | . . . . . . . . . . . . . . . . . . . . . . . . . . 1 . . . . 1 1 . . . . . Patch 10 | . . . . . . . 1 2 . . 2 . . . . . . . . . . . . . . 1 . . . . . 2 . . . 2 . Recycling Units 63 | . 1 . 3 . . . 2 3 5 . 14 . . . . . . . . . 5 . . . . 18 . . . . 10 . . . . 2 . Reject 16 | . . . 1 . . . 1 2 2 . 3 . . . . . . . . . . . . . . 5 . . . . 2 . . . . . . Recyclers 6 | . . . . . . . . . 1 . 1 . . . . . . . . . . . . . . 2 . . . . 1 . . . . 1 . Mask 13 | . . . . . . . 1 . 2 . 2 . . . . . . . . . . . . . . 5 . . . . 2 . . . . 1 . Tunnel 4 | . 1 . 2 . . . . 1 . . . . . . . . . . . . . . . . . . . . . . . . . . . . . Fedlink 17 | . . . . . . . . . . . 6 . . . . . . . . . 2 . . . . 5 . . . . 4 . . . . . . Scraphulk 7 | . . . . . . . . . . . 2 . . . . . . . . . 3 . . . . 1 . . . . 1 . . . . . . Scanalyzers 8 | . . . 1 . . . 1 . . . 1 . . . . . . . . . . . . . . . . . . . 3 . . 1 . 1 . Researchers 3 | . . . . . . . . . . . . . . . . . . . . . . . . . . . . . . . 1 . . 1 . 1 . Extract 5 | . . . 1 . . . 1 . . . 1 . . . . . . . . . . . . . . . . . . . 2 . . . . . . Garrison Access 20 | . . . . . . . . . . . 6 . . . . . . . 3 . 2 . . . . . . . . 4 . . 5 . . . . Broadcast 1 | . . . . . . . . . . . . . . . . . . . . . . . . . . . . . . . . . 1 . . . . Redirect 3 | . . . . . . . . . . . 1 . . . . . . . . . . . . . . . . . . 1 . . 1 . . . . Reprogram 5 | . . . . . . . . . . . 1 . . . . . . . 1 . 1 . . . . . . . . 1 . . 1 . . . . Intercept 6 | . . . . . . . . . . . 2 . . . . . . . 1 . 1 . . . . . . . . 1 . . 1 . . . . Watchers 5 | . . . . . . . . . . . 2 . . . . . . . 1 . . . . . . . . . . 1 . . 1 . . . . Data Cores Recovered 3 | . . . 1 . . . 2 . . . . . . . . . . . . . . . . . . . . . . . . . . . . . . Used 1 | . . . 1 . . . . . . . . . . . . . . . . . . . . . . . . . . . . . . . . . . Hacking Detections 184 | . 7 . 10 . . 1 15 14 6 . 35 . 2 . . . . 1 1 . 9 . . . . 15 9 1 . 5 10 11 10 7 3 7 5 Full Trace Events 9 | . 2 . 1 . . . 1 2 . . 1 . . . . . . 1 . . . . . . . 1 . . . . . . . . . . . Feedback Events 2 | . . . . . . . . 1 . . . . . . . . . . . . . . . . . 1 . . . . . . . . . . . Corruption 1 | . . . . . . . . 1 . . . . . . . . . . . . . . . . . . . . . . . . . . . . . Hackware Fried 1 | . . . . . . . . . . . . . . . . . . . . . . . . . . 1 . . . . . . . . . . . Feedback Blocked . | . . . . . . . . . . . . . . . . . . . . . . . . . . . . . . . . . . . . . . Robot Schematics Acquired 3 | . . . . . . . . . . . 1 . . . . . . . . . . . . . . . . . . . . 2 . . . . . Robots Built . | . . . . . . . . . . . . . . . . . . . . . . . . . . . . . . . . . . . . . . Authchips . | . . . . . . . . . . . . . . . . . . . . . . . . . . . . . . . . . . . . . . Time . | . . . . . . . . . . . . . . . . . . . . . . . . . . . . . . . . . . . . . . Total Robot Build Rating . | . . . . . . . . . . . . . . . . . . . . . . . . . . . . . . . . . . . . . . Part Schematics Acquired 80 | . . . 11 . . . 6 . 1 . 11 . . . . . . . . . 2 . . . . 1 . . . . 29 16 2 1 . . . Parts Built 2 | . . . . . . . . . . . 2 . . . . . . . . . . . . . . . . . . . . . . . . . . Authchips . | . . . . . . . . . . . . . . . . . . . . . . . . . . . . . . . . . . . . . . Time 84 | . . . . . . . . . . . 84 . . . . . . . . . . . . . . . . . . . . . . . . . . Total Part Build Rating 8 | . . . . . . . . . . . 8 . . . . . . . . . . . . . . . . . . . . . . . . . . Parts Repaired 24 | . . . . . . . . 2 . . 3 . . . . . . . . . . . . . . 3 . . . . 5 9 . 2 . . . Time 1010 | . . . . . . . . 76 . . 132 . . . . . . . . . . . . . . 221 . . . . 172 355 . 54 . . . Parts Recycled . | . . . . . . . . . . . . . . . . . . . . . . . . . . . . . . . . . . . . . . Recycled Matter 280 | . . . . . . . . . . . 280 . . . . . . . . . . . . . . . . . . . . . . . . . . Retrieved Matter 280 | . . . . . . . . . . . 280 . . . . . . . . . . . . . . . . . . . . . . . . . . Retrieved Components 20 | . . . . . . . 10 . 10 . . . . . . . . . . . . . . . . . . . . . . . . . . . . Parts Scanalyzed 34 | . . . 5 . . . 4 . . . 6 . . . . . . . . . 3 . . . . 1 . . . . 10 2 2 1 . . . Part Schematics Acquired 32 | . . . 5 . . . 4 . . . 6 . . . . . . . . . 2 . . . . . . . . . 10 2 2 1 . . . Parts Damaged 3 | . . . . . . . . . . . 1 . . . . . . . . . 2 . . . . . . . . . . . . . . . . Bothacking | -11 -10 -10 -9 -9 -9 -8 -8 -8 -8 -8 -6 -6 -6 -6 -6 -6 -6 -5 -5 -5 -5 -5 -5 -5 -4 -4 -4 -4 -4 -4 -3 -3 -2 -2 -2 -1 -1 ------------ Run | Yrd Mat Min Mat Min Exi Min Mat Sto Rec Scr Fac Was Fac Low Low Zio Dee Pro Fac Was Fac Upp Upp War Pro Fac Ext Cet Arc Hub Res Tes Res Qua Frg Acc Com Used RIF Installer . | . . . . . . . . . . . . . . . . . . . . . . . . . . . . . . . . . . . . . . Robots Hacked 31 | . . . . . . . . . . . . . . . . . . 1 1 . 2 1 . 6 . 1 . . . 1 . . 9 3 4 1 1 Non-combat . | . . . . . . . . . . . . . . . . . . . . . . . . . . . . . . . . . . . . . . Combat 30 | . . . . . . . . . . . . . . . . . . 1 1 . 1 1 . 6 . 1 . . . 1 . . 9 3 4 1 1 Robot Hacks Applied . | . . . . . . . . . . . . . . . . . . . . . . . . . . . . . . . . . . . . . . Manual 1 | . . . . . . . . . . . . . . . . . . . . . 1 . . . . . . . . . . . . . . . . Relay Couplers Released 10 | . . . . . . . . 3 . . . . . . . . . . . . 1 . . . . . . . . 3 . . . . 3 . . Machine Destruction 7 | . . . . . . . . 3 . . . . . . . . . . . . 1 . . . . . . . . 3 . . . . . . . Programmers 3 | . . . . . . . . . . . . . . . . . . . . . . . . . . . . . . . . . . . 3 . . Fabnet Peak Effective % 15 | . . . . . . . . . . . . . . . . . . 3 3 3 3 3 3 3 1 1 1 1 1 1 . . 15 15 15 5 5 Autooverrided 30 | . . . . . . . . . . . . . . . . . . 1 1 . 1 1 . 6 . 1 . . . 1 . . 9 3 4 1 1 Robots Rewired 15 | . . . . . . . . . . . . . . . . . . . . . . 2 2 . . . 11 . . . . . . . . . . Allies Hacked 8 | . . . . . . . . . . . . . . . . . . . . . 4 . . . . . 3 . . . . . 1 . . . . Hacks Repelled . | . . . . . . . . . . . . . . . . . . . . . . . . . . . . . . . . . . . . . . Allies | -11 -10 -10 -9 -9 -9 -8 -8 -8 -8 -8 -6 -6 -6 -6 -6 -6 -6 -5 -5 -5 -5 -5 -5 -5 -4 -4 -4 -4 -4 -4 -3 -3 -2 -2 -2 -1 -1 -------- Run | Yrd Mat Min Mat Min Exi Min Mat Sto Rec Scr Fac Was Fac Low Low Zio Dee Pro Fac Was Fac Upp Upp War Pro Fac Ext Cet Arc Hub Res Tes Res Qua Frg Acc Com Total Allies 129 | . . . . . . . . . . . 7 20 . . . . . 1 4 20 7 3 2 6 . 2 20 5 . 4 2 1 12 4 5 1 3 Largest Group 23 | . . . . . . . . . . . 4 23 23 23 22 21 16 12 11 21 16 2 2 3 . 1 12 5 3 3 1 2 3 2 3 1 2 Highest-Rated Group 937 | . . . . . . . . . . . 272 937 937 937 887 862 669 487 407 738 787 59 78 125 . 123 568 480 288 288 139 165 222 167 271 69 219 Highest-Rated Ally 219 | . . . . . . . . . . . 123 50 50 50 50 50 50 46 46 50 123 30 49 49 . 123 159 153 96 96 139 139 82 144 144 69 219 Total Orders 54 | . . . . . . . . . . . 26 . . . . . . . . . 1 7 . 6 . . . . 4 5 2 1 . . 2 . . STAY 22 | . . . . . . . . . . . 14 . . . . . . . . . 1 . . 1 . . . . 2 2 1 . . . 1 . . FOLLOW 18 | . . . . . . . . . . . 10 . . . . . . . . . . . . . . . . . 2 3 1 1 . . 1 . . EXPLORE 11 | . . . . . . . . . . . 2 . . . . . . . . . . 4 . 5 . . . . . . . . . . . . . RETURN 3 | . . . . . . . . . . . . . . . . . . . . . . 3 . . . . . . . . . . . . . . . Ally Attacks 1392 | . . . . . . . . . . . 82 . . 48 26 168 50 91 59 70 333 2 3 14 . 39 168 39 21 61 . 41 46 2 7 4 18 Total Damage 44968 | . . . . . . . . . . . 3382 . . 2469 1307 4168 1151 2182 1116 2771 10960 67 74 300 . 1325 4987 998 907 1716 . 2324 1460 115 69 84 1036 Kills 286 | . . . . . . . . . . . 29 . . 9 7 59 9 10 6 6 72 1 . . . 16 18 7 2 10 . 16 4 . . . 5 Allies Corrupted 12 | . . . . . . . . . . . . . . . . . . . . . . . 1 8 . . 2 . . . . . 1 . . . . Allies Melted 1 | . . . . . . . . . . . . . . . . . . . . . . . . 1 . . . . . . . . . . . . . Intel | -11 -10 -10 -9 -9 -9 -8 -8 -8 -8 -8 -6 -6 -6 -6 -6 -6 -6 -5 -5 -5 -5 -5 -5 -5 -4 -4 -4 -4 -4 -4 -3 -3 -2 -2 -2 -1 -1 ------- Run | Yrd Mat Min Mat Min Exi Min Mat Sto Rec Scr Fac Was Fac Low Low Zio Dee Pro Fac Was Fac Upp Upp War Pro Fac Ext Cet Arc Hub Res Tes Res Qua Frg Acc Com Active Infowar (turns) 14583 | 166 1171 . . . . . . . . . 1260 . . . 235 989 995 1167 989 226 1535 . . . . 241 811 419 507 . . . 959 446 893 967 607 Optics 11946 | . . . . . . . . . . . . . . . 195 989 995 1167 989 226 1535 . . . . 241 811 419 507 . . . 959 446 893 967 607 Sensors 40 | . . . . . . . . . . . . . . . 40 . . . . . . . . . . . . . . . . . . . . . . Terrain 453 | 166 287 . . . . . . . . . . . . . . . . . . . . . . . . . . . . . . . . . . . . Structural 1440 | . 884 . . . . . . . . . . . . . . . . . . . . . . . . . . . . . . . . . . 556 . Decoding 3575 | . . . . . . . . . . . 1260 . . . . 165 . . 985 226 939 . . . . . . . . . . . . . . . . Robot Analysis Total 38 | . 3 . 2 . . . 5 1 1 6 3 . 1 . . . . . . . . . . . . . . . . 1 6 5 . 2 1 . 1 Derelict Logs Recovered 18 | . . 2 . . . . . . . . . . . 3 3 2 . 3 . . . 2 1 . 2 . . . . . . . . . . . . Drone Launches 46 | . . . . . . . . . . . 2 . . . . . . . . . . 4 . 40 . . . . . . . . . . . . . Drone Recoveries 2 | . . . . . . . . . . . . . . . . . . . . . . 2 . . . . . . . . . . . . . . . Decoded 0b10 Intel 203 | . . . . . . . . . . . 83 . . . . . . . 60 8 52 . . . . . . . . . . . . . . . . Items 203 | . . . . . . . . . . . 83 . . . . . . . 60 8 52 . . . . . . . . . . . . . . . . Exploration | -11 -10 -10 -9 -9 -9 -8 -8 -8 -8 -8 -6 -6 -6 -6 -6 -6 -6 -5 -5 -5 -5 -5 -5 -5 -4 -4 -4 -4 -4 -4 -3 -3 -2 -2 -2 -1 -1 ------------- Run | Yrd Mat Min Mat Min Exi Min Mat Sto Rec Scr Fac Was Fac Low Low Zio Dee Pro Fac Was Fac Upp Upp War Pro Fac Ext Cet Arc Hub Res Tes Res Qua Frg Acc Com Turns Passed 43750 | 266 1359 1068 4050 48 386 276 2692 4466 891 1092 3879 332 123 959 1160 989 995 1167 989 226 1592 1000 813 1252 428 2259 811 419 584 540 1352 1234 1140 446 893 967 607 Spaces Moved 43545 | 127 700 611 2035 31 235 155 1292 2073 545 1076 4441 413 149 1280 1536 1210 1164 1303 1312 285 2088 1780 1225 1428 821 3429 722 213 293 557 1821 1652 1706 625 1251 1359 602 Core 17 | 17 . . . . . . . . . . . . . . . . . . . . . . . . . . . . . . . . . . . . . Treads 7469 | 110 700 611 2035 31 235 155 1292 2073 204 . . . . . . . . . . . . . . . . . . 23 . . . . . . . . . Legs 78 | . . . . . . . . . . . . . . . . . . . . . . . . . . . . . . . . . . . . . 78 Wheels 1593 | . . . . . . . . . 341 1076 176 . . . . . . . . . . . . . . . . . . . . . . . . . . Hover 34388 | . . . . . . . . . . . 4265 413 149 1280 1536 1210 1164 1303 1312 285 2088 1780 1225 1428 821 3429 722 190 293 557 1821 1652 1706 625 1251 1359 524 Flight . | . . . . . . . . . . . . . . . . . . . . . . . . . . . . . . . . . . . . . . Fastest Speed 25 | 50 160 160 160 160 160 160 153 150 100 100 48 61 61 61 61 61 61 51 44 44 25 29 39 33 37 35 41 56 52 47 40 40 36 41 37 31 31 Average Speed 69 | 147 160 160 160 160 160 160 159 157 120 100 60 61 61 61 62 61 66 61 46 44 41 39 42 43 39 41 44 100 56 51 43 44 38 41 38 41 59 Slowest Speed 240 | 160 160 160 240 160 160 160 166 166 155 100 154 127 61 61 127 127 68 138 50 44 44 40 117 107 42 101 120 184 117 58 108 108 47 41 41 142 190 Overloaded Moves 563 | . . . . . . . . . . . 12 . . . . . . . . . 64 16 5 12 12 4 . . . . . . . . . 425 13 Propulsion Burnouts . | . . . . . . . . . . . . . . . . . . . . . . . . . . . . . . . . . . . . . . Robots Hopped . | . . . . . . . . . . . . . . . . . . . . . . . . . . . . . . . . . . . . . . Potential Cave-ins 4 | . . . . . . . . . . . . . . . . . . . . . 4 . . . . . . . . . . . . . . . . Cave-ins Triggered . | . . . . . . . . . . . . . . . . . . . . . . . . . . . . . . . . . . . . . . Teleports 3 | . . . . . . . . . . . . . . . . . . . . . . . . . . . . . . . . . . 1 1 1 . Exploration Rate (%) 68 | 6 95 96 95 12 60 40 91 91 63 71 78 94 4 97 98 87 82 96 32 93 36 99 96 95 92 62 74 79 90 41 42 94 37 61 50 46 24 Regions Visited 37 Branch Regions 24 Pre-discovered Areas 29 | . 3 1 3 . 1 . 3 3 3 . 6 . . . . 3 . . . . . 1 . . . 2 . . . . . . . . . . . Known Exits Taken 20 | . . 1 1 . 1 1 1 1 1 1 . . 1 1 . . . 1 . . 1 1 1 . . 1 . . . 1 1 1 1 . 1 . . Unknown Exits Taken 13 | 1 1 . . 1 . . . . . . . . . . 1 1 1 . . . . . . 1 1 . 1 1 1 . . . . 1 . 1 . Scrap Searched 37 | . . 1 . . . 1 . . . 4 . . . 9 10 3 . 3 . . . 2 3 . 1 . . . . . . . . . . . . Spaces Dug 455 | . . . 3 . . . . 1 . . 23 . . . 3 . . . 4 . 127 3 1 2 72 38 4 . . . 38 9 59 17 16 23 12 Terrain Destroyed 3610 | . 10 5 62 . . . 42 117 10 . 188 1 . 33 38 24 61 72 271 34 477 20 72 269 267 328 91 53 19 265 108 160 179 49 29 138 118 Melee 67 | . . . . . . . . . . . . . . . . . . . 4 . 3 3 . 2 . 9 4 . . . . 9 4 3 16 10 . Projectile 726 | . . . 1 . . . . 10 10 . 86 1 . 5 8 . 22 17 29 3 87 16 39 26 13 77 39 13 19 57 7 5 12 20 6 17 81 AOE 2812 | . 10 5 61 . . . 42 107 . . 102 . . 28 30 24 39 55 238 31 387 . 33 241 254 242 48 40 . 208 101 144 161 26 7 111 37 Terrain Rammed . | . . . . . . . . . . . . . . . . . . . . . . . . . . . . . . . . . . . . . . Walls Destroyed . | . . . . . . . . . . . . . . . . . . . . . . . . . . . . . . . . . . . . . . Machines Disabled . | . . . . . . . . . . . . . . . . . . . . . . . . . . . . . . . . . . . . . . Actions | -11 -10 -10 -9 -9 -9 -8 -8 -8 -8 -8 -6 -6 -6 -6 -6 -6 -6 -5 -5 -5 -5 -5 -5 -5 -4 -4 -4 -4 -4 -4 -3 -3 -2 -2 -2 -1 -1 --------- Run | Yrd Mat Min Mat Min Exi Min Mat Sto Rec Scr Fac Was Fac Low Low Zio Dee Pro Fac Was Fac Upp Upp War Pro Fac Ext Cet Arc Hub Res Tes Res Qua Frg Acc Com Total 52169 | 159 822 648 2376 30 248 166 1612 2646 728 1092 5267 476 180 1446 1723 1430 1351 1604 1496 346 2495 2014 1451 1983 881 3946 1028 389 637 682 2251 1949 1977 770 1509 1599 762 Wait 4260 | . 22 . 34 . . . 84 194 135 . 512 54 29 139 169 198 121 255 46 42 167 128 174 379 21 140 110 118 276 35 256 123 79 52 121 19 28 Move 43509 | 126 699 610 2034 30 234 154 1291 2072 544 1075 4441 412 148 1279 1535 1209 1163 1302 1312 284 2087 1779 1224 1427 820 3428 721 212 292 556 1820 1651 1705 624 1250 1358 601 Hop . | . . . . . . . . . . . . . . . . . . . . . . . . . . . . . . . . . . . . . . Pick Up 387 | 2 13 4 27 . 5 2 22 13 2 8 33 . 1 6 2 3 15 3 10 . 17 11 1 28 2 35 5 10 7 8 22 14 15 8 8 15 10 Fast Attach 209 | 7 2 1 7 . . . 12 13 4 2 9 1 . . 3 2 . 1 2 1 6 . 1 7 1 23 5 10 7 2 8 7 5 13 14 21 12 Attach 204 | . . . 7 . . . 4 16 9 2 16 . . 1 1 1 1 . 3 . 11 . 3 8 2 14 12 7 5 9 4 6 10 5 3 16 28 Detach 108 | . 2 . . . . . 4 5 8 . 3 . . 1 . 2 1 . 1 1 5 . 1 5 1 8 2 4 5 4 3 1 3 7 4 12 15 Swap 744 | . 10 3 33 . 3 1 29 48 4 1 48 2 1 5 2 2 18 11 35 4 59 10 8 42 17 102 17 7 6 9 41 48 55 18 13 27 5 Drop 477 | . 9 3 38 . 6 2 36 26 . 4 29 1 1 5 2 2 15 4 10 . 20 13 1 36 1 45 5 10 9 5 36 12 20 21 18 26 6 Fire 1843 | 24 65 27 196 . . 7 129 211 22 . 176 6 . 7 9 11 17 24 73 14 119 21 23 38 16 116 69 11 30 54 59 74 73 15 10 51 46 Melee 154 | . . . . . . . . . . . . . . . . . . . 4 . 3 3 . 2 . 9 4 . . . 2 13 12 7 68 26 1 Ram 5 | . . . . . . . . . . . . . . . . . . . . . . . . . . . . . . . . . . . . 2 3 Kick . | . . . . . . . . . . . . . . . . . . . . . . . . . . . . . . . . . . . . . . Crush 1 | . . . . . . . 1 . . . . . . . . . . . . . . . . . . . . . . . . . . . . . . Escape Stasis 78 | . . . . . . . . . . . . . . . . . . . . . . . . . . 26 19 . . . . . . . . 26 7 Rewire 126 | . . . . . . . . 4 . . . . . 3 . . . . . . 1 41 15 3 . . 59 . . . . . . . . . . Trap 13 | . . . . . . . . . . . . . . . . . . . . . . 8 . 5 . . . . . . . . . . . . . Miscellaneous 51 | . . . . . . . . 44 . . . . . . . . . 4 . . . . . 3 . . . . . . . . . . . . . Route ------- -11/Scrapyard -10/Materials (discovered 6 exits: *Mat x3 / [*Min x2] / [*Sub]) -10/Mines (discovered 2 exits: *Mat x2) -9/Materials (discovered 5 exits: *Mat x3 / *Min x2) -9/Mines -9/Exiles (discovered 2 exits: *Min x2) -8/Mines -8/Materials (discovered 4 exits: *Fac x3 / *Sto) -8/Storage (discovered 2 exits: Fac / *Rec) -8/Recycling (discovered 2 exits: Fac / *Scr) -8/Scraptown (discovered 2 exits: *Fac x2) -6/Factory (discovered 6 exits: *Fac x4 / *Low x2) -6/Waste -6/Factory (discovered 5 exits: Fac x3 / *Low x2) -6/Lower Caves -6/Lower Caves (discovered 2 exits: *Fac / *Zio) -6/Zion (discovered 2 exits: [*Dee] / [*Pro]) -6/Deep Caves -5/Proximity Caves -5/Factory (discovered 2 exits: *Fac / *Upp) -5/Waste -5/Factory (discovered 3 exits: *Fac x2 / *Upp) -5/Upper Caves -5/Upper Caves (discovered 2 exits: *Fac / *War) -5/Warlord -4/Proximity Caves -4/Factory (discovered 4 exits: Res / *Upp / *Ext x2) -4/Extension (discovered 2 exits: *Res / *Cet) -4/Cetus (discovered 2 exits: *Res / [*Arc]) -4/Archives (discovered 3 exits: *Res / *Hub x2) -4/Hub_04(d) (discovered 4 exits: *Res x4) -3/Research (discovered 5 exits: *Res x2 / Arm / *Tes x2) -3/Testing -2/Research (discovered 5 exits: *Acc x3 / *Qua x2) -2/Quarantine (discovered 3 exits: Acc / [*Sec] / *Frg) -2/Protoforge -1/Access -1/Command (discovered 2 exits: *Sur x2) To Epsilon Eridani History --------- Turn | Location | Event 15 | -11/Scrapyard | Discovered new exit (range 15) 267 | -11/Scrapyard | Entered Materials 306 | -10/Materials | Build established: Mutant 484 | -10/Materials | Discovered new exit (range 4) 684 | -10/Materials | Discovered new exit (range 11) 701 | -10/Materials | Discovered new exit (range 15) 1010 | -10/Materials | Discovered new exit (range 16) 1202 | -10/Materials | Discovered new exit (range 4) 1243 | -10/Materials | Discovered new exit (range 16) 1301 | -10/Materials | Loaded intel: 10 trap records 1326 | -10/Materials | Learned location of Mines (-9) 1404 | -10/Materials | Learned location of 2 exits from Materials 1626 | -10/Materials | Entered Mines 1627 | -10/Mines | Identified exit to Materials 1745 | -10/Mines | Learned location of Storage (-8) 2239 | -10/Mines | Learned location of 1 exit from Materials 2652 | -10/Mines | A weapon hastily lodged in a ceiling crevice suddenly fell to the ground 2694 | -10/Mines | Entered Materials 2694 | -9/Materials | Evolved 2 slots: Weapon x2 2695 | -9/Materials | Identified exit to Mines 2696 | -9/Materials | Identified exit to Materials 2984 | -9/Materials | Build established: Tank 3364 | -9/Materials | Build established: Scavenger-Tank 4131 | -9/Materials | Learned 2 Storage zone layouts 4302 | -9/Materials | Learned location of 1 exit from Storage 4339 | -9/Materials | Learned Recycling recycling unit intel 4403 | -9/Materials | Learned Storage stockpile data 4939 | -9/Materials | Build established: Tank 5339 | -9/Materials | Build established: Gunner 5494 | -9/Materials | First assault squad dispatched 6358 | -9/Materials | Sterilization system engaged 6358 | -9/Materials | Non-combat units ordered to evacuate 6399 | -9/Materials | Lost 3 parts (1n2w) 6402 | -9/Materials | Destroyed 12 combat bots 6458 | -9/Materials | Combat units ordered to evacuate 6658 | -9/Materials | Ambient heat levels rising (+10) 6664 | -9/Materials | Build established: Tank 6744 | -9/Materials | Entered Mines 6786 | -9/Mines | Deemed a non-threat by the Exiles lab entrance 6786 | -9/Mines | Discovered new exit (range 5) 6792 | -9/Mines | Entered Exiles 6793 | -9/Exiles | Identified exit to Mines 6867 | -9/Exiles | Met 8R-AWN 6893 | -9/Exiles | Met EX-HEX 6976 | -9/Exiles | Build established: Gunner 6984 | -9/Exiles | Met EX-DEC 7013 | -9/Exiles | Learned location of Zion (-6) 7041 | -9/Exiles | Met EX-BIN 7178 | -9/Exiles | Entered Mines 7435 | -8/Mines | Discovered exit to Materials (range 8) 7454 | -8/Mines | Entered Materials 7454 | -8/Materials | Evolved 2 slots: Propulsion x1, Utility x1 7602 | -8/Materials | Build established: Scavenger-Gunner 8074 | -8/Materials | Learned Storage trap positions 8107 | -8/Materials | Identified exit to Factory 8130 | -8/Materials | Learned 2 Storage zone layouts 8143 | -8/Materials | Learned location of Lower Caves (-6) 8144 | -8/Materials | Learned Factory emergency access door positions 8145 | -8/Materials | Learned Storage stockpile data 8146 | -8/Materials | Learned Storage terminal intel 8172 | -8/Materials | Identified exit to Storage 8280 | -8/Materials | Destroyed 8 combat bots 8525 | -8/Materials | Build established: Hacker-Gunner 9042 | -8/Materials | Central database locked down 9454 | -8/Materials | First assault squad dispatched 9504 | -8/Materials | Build established: Gunner 9783 | -8/Materials | Sterilization system engaged 9783 | -8/Materials | Non-combat units ordered to evacuate 9883 | -8/Materials | Combat units ordered to evacuate 10083 | -8/Materials | Ambient heat levels rising (+10) 10146 | -8/Materials | Entered Storage 10147 | -8/Storage | Identified exit to Recycling 10149 | -8/Storage | Loaded intel: 24 trap records 10151 | -8/Storage | Loaded intel: 12 terminal locations 10636 | -8/Storage | Build established: Scavenger-Gunner 10806 | -8/Storage | Learned Factory trap positions 10874 | -8/Storage | Learned 4 Lower Caves zone layouts 10932 | -8/Storage | Learned 2 Lower Caves zone layouts 10946 | -8/Storage | First assault squad dispatched 11020 | -8/Storage | Learned Factory trap positions 11049 | -8/Storage | Learned Storage stockpile data 11069 | -8/Storage | Learned location of 2 exits from Factory 11099 | -8/Storage | Learned location of Recycling (-8) 11189 | -8/Storage | Learned location of 1 exit from Lower Caves 11446 | -8/Storage | Repaired Imp. Weapon Shielding 11813 | -8/Storage | Destroyed 7 combat bots 12067 | -8/Storage | Core integrity fell below 50% 12432 | -8/Storage | Repaired Adv. Treads 14455 | -8/Storage | High security lockdown imminent 14526 | -8/Storage | Core integrity fell below 20% 14535 | -8/Storage | High security lockdown engaged 14562 | -8/Storage | Lost 3 parts (1p2w) 14612 | -8/Storage | Entered Recycling 14613 | -8/Recycling | Met a Zionite searching for Scraptown 14613 | -8/Recycling | Identified exit to Factory 14614 | -8/Recycling | Loaded intel: 6 recycling unit locations 14640 | -8/Recycling | Lost 4 parts (2n1u1w) 14751 | -8/Recycling | Scanned before Scraplab entrance 15035 | -8/Recycling | System corruption reached 10% 15070 | -8/Recycling | Build established: Hacker-Mutant 15205 | -8/Recycling | Identified exit to Scraptown 15252 | -8/Recycling | Learned Factory recycling unit intel 15273 | -8/Recycling | Entered Scraplab 15316 | -8/Recycling | Learned 4 Factory zone layouts 15345 | -8/Recycling | Learned location of Lower Caves (-7) 15391 | -8/Recycling | Learned 4 Recycling zone layouts 15432 | -8/Recycling | Learned Factory trap positions 15503 | -8/Recycling | Entered Scraptown 15503 | -8/Scraptown | System corruption cleaned by C-Scrubber 15530 | -8/Scraptown | Heard Great Nut preacher, LISTEN AND RECITE! 15656 | -8/Scraptown | Visited UFD Registry 15656 | -8/Scraptown | Registered with UFD as "Mattertalker" 15677 | -8/Scraptown | Visited Junk Repository 15719 | -8/Scraptown | Discovered exit to Factory (range 13) 15793 | -8/Scraptown | Visited Spacefarers 15801 | -8/Scraptown | Visited Comm Corps 15872 | -8/Scraptown | Visited Infowarlord's Domain 15907 | -8/Scraptown | Visited DA-N13 Charitable Foundation 15916 | -8/Scraptown | Found DCF Scrap (28 items) 16033 | -8/Scraptown | Visited Science Testing Area 16042 | -8/Scraptown | Visited LU-1G1's Boring Crew 16070 | -8/Scraptown | Visited Analyses Database 16099 | -8/Scraptown | Visited Cartography Club 16220 | -8/Scraptown | Build established: Hacker-Gunner 16523 | -8/Scraptown | Met Optimus 16523 | -8/Scraptown | Accepted into 0bPrime 16592 | -8/Scraptown | Discovered exit to Factory (range 3) 16595 | -8/Scraptown | Entered Factory 16595 | -6/Factory | Evolved 4 slots: Propulsion x2, Utility x2 16596 | -6/Factory | Identified exit to Factory 16598 | -6/Factory | Loaded intel: 128 trap records 16600 | -6/Factory | Loaded intel: 8 recycling unit locations 16697 | -6/Factory | Discovered exit to Factory (range 49) 17321 | -6/Factory | Loaded intel: 8 recycling unit locations 17332 | -6/Factory | Learned location of Protoforge (-2) 17679 | -6/Factory | Repaired Hvy. Assault Cannon 17734 | -6/Factory | Identified exit to Lower Caves 17749 | -6/Factory | Spotted B-75 Beast 17789 | -6/Factory | Learned location of 3 exits from Factory 17848 | -6/Factory | Learned Extension emergency access door positions 17898 | -6/Factory | Learned location of 1 exit from Cetus 17912 | -6/Factory | Lost 3 parts (1n1u1w) 17936 | -6/Factory | Learned location of 1 exit from Upper Caves 17973 | -6/Factory | Lost 4 parts (1n1u2w) 18001 | -6/Factory | Learned location of 1 exit from Lower Caves 18017 | -6/Factory | Discovered exit to Factory (range 16) 18194 | -6/Factory | Scraphulk reinforcements arrived? 18345 | -6/Factory | First assault squad dispatched 18371 | -6/Factory | Scraphulk reinforcements arrived 18413 | -6/Factory | Fabricated Adv. Assault Cannon (x2) 19427 | -6/Factory | Repaired Gravmag System? 19498 | -6/Factory | Repaired Cmb. Airjet 19555 | -6/Factory | Destroyed 7 combat bots 20206 | -6/Factory | Learned Hub_04(d) stockpile data 20267 | -6/Factory | Learned location of Upper Caves (-5) 20357 | -6/Factory | Learned location of Proximity Caves (-3) 20386 | -6/Factory | Learned location of 1 exit from Extension 20423 | -6/Factory | Learned location of 2 exits from Factory 20472 | -6/Factory | Learned location of Upper Caves (-4) 20474 | -6/Factory | Sucked down chute 20474 | -6/Factory | Entered Waste 20475 | -6/Waste | Joined by Warlord forces that had cleared the area 20569 | -6/Waste | 3 allies followed down the chute 20655 | -6/Waste | Discovered new exit (range 16) 20806 | -6/Waste | Entered Factory 20806 | -6/Factory | Accompanied by 23 allies 20808 | -6/Factory | Loaded intel: 112 trap records 20929 | -6/Factory | Entered Lower Caves 20929 | -6/Lower Caves | Accompanied by 23 allies 20930 | -6/Lower Caves | Identified exit to Lower Caves 21076 | -6/Lower Caves | Learned 4 Factory zone layouts 21164 | -6/Lower Caves | Learned 8 Factory zone layouts 21251 | -6/Lower Caves | Learned 12 Factory zone layouts 21278 | -6/Lower Caves | Found Alien Artifact 21888 | -6/Lower Caves | Entered another Lower Caves area 21888 | -6/Lower Caves | Accompanied by 22 allies 21940 | -6/Lower Caves | Spotted B-75 Beast 21952 | -6/Lower Caves | Destroyed B-75 Beast 22015 | -6/Lower Caves | Learned Factory security intel 22048 | -6/Lower Caves | Learned Factory garrison access intel 22059 | -6/Lower Caves | Discovered new exit (range 11) 22267 | -6/Lower Caves | Build established: Gunner 22375 | -6/Lower Caves | Found Alien Artifact 22375 | -6/Lower Caves | Identified Core Expander 22375 | -6/Lower Caves | Installed Core Expander, added new Utility slot 22756 | -6/Lower Caves | Ambushed by wild Derelicts 23048 | -6/Lower Caves | Entered Zion 23048 | -6/Zion | Accompanied by 21 allies 23100 | -6/Zion | Discovered new exit (range 11) 23180 | -6/Zion | Learned Factory trap positions 23196 | -6/Zion | Received a visual enhancement algorithm 23197 | -6/Zion | Ran a visual enhancement algorithm 23216 | -6/Zion | Learned Factory terminal intel 23270 | -6/Zion | Found CR-A16's Pointy Stick 23314 | -6/Zion | Turned away by Imprinter 23349 | -6/Zion | Given A8's code to call for help 23359 | -6/Zion | Learned location of Quarantine (-2) 23367 | -6/Zion | Learned location of Warlord (-5) 23403 | -6/Zion | Identified Dimensional Node Initializer 23403 | -6/Zion | Initialized slip node 23407 | -6/Zion | Found GAL Module 23865 | -6/Zion | Build established: Hacker-Gunner 23888 | -6/Zion | Attacked by Zionites 23891 | -6/Zion | Destroyed Imprinter 23895 | -6/Zion | Extracted access codes from Imprinter's data core 23976 | -6/Zion | Lost 3 allies 23985 | -6/Zion | Opened final containment barrier to the Deep Caves 24015 | -6/Zion | Discovered new exit (range 5) 24016 | -6/Zion | Saw the warning signs outside the Deep Caves entrance 24037 | -6/Zion | Entered Deep Caves 24037 | -6/Deep Caves | Accompanied by 16 allies 24104 | -6/Deep Caves | Z-Facility disabled 24249 | -6/Deep Caves | Found Prototype Protection 24249 | -6/Deep Caves | Identified Zio. Weapon Casing 24252 | -6/Deep Caves | Lost 5 allies 24531 | -6/Deep Caves | Build established: Gunner 24585 | -6/Deep Caves | Discovered new exit (range 6) 24618 | -6/Deep Caves | Spotted AG-43244 24725 | -6/Deep Caves | Found Zio. Weapon Casing 24728 | -6/Deep Caves | Found Zio. Weapon Casing 25032 | -6/Deep Caves | Entered Proximity Caves 25032 | -5/Proximity Caves | Accompanied by 11 allies 25060 | -5/Proximity Caves | Core integrity fell below 50% 25244 | -5/Proximity Caves | Spotted B-75 Beast 25255 | -5/Proximity Caves | Destroyed B-75 Beast 25338 | -5/Proximity Caves | Learned Factory non-interactive machine intel 25478 | -5/Proximity Caves | Attracted the attention of an 0b10 checkpoint 25499 | -5/Proximity Caves | Discovered exit to Factory (range 13) 25674 | -5/Proximity Caves | Received a Behemoth hack from an annoying Tinkerer 25807 | -5/Proximity Caves | Learned Factory terminal intel 25822 | -5/Proximity Caves | Attracted the attention of an 0b10 base 25881 | -5/Proximity Caves | Learned Factory terminal intel 26199 | -5/Proximity Caves | Entered Factory 26199 | -5/Factory | Accompanied by 8 allies 26199 | -5/Factory | Evolved 2 slots: Propulsion x1, Utility x1 26200 | -5/Factory | Identified exit to Upper Caves 26202 | -5/Factory | Loaded intel: 111 trap records 26204 | -5/Factory | Loaded intel: 185 non-interactive machine locations 26205 | -5/Factory | Loaded intel: 25 terminal locations 26206 | -5/Factory | Loaded intel: 4 garrison access locations 26242 | -5/Factory | Local machine network offline 26403 | -5/Factory | Discovered new exit (range 18) 26479 | -5/Factory | Destroyed 8 combat bots 26486 | -5/Factory | Lost 5 allies 26499 | -5/Factory | First assault squad dispatched 26608 | -5/Factory | Destroyed 7 combat bots 26743 | -5/Factory | Found Scatter Rocket Array 27166 | -5/Factory | High security lockdown imminent 27187 | -5/Factory | Destroyed 13 combat bots 27188 | -5/Factory | Manually triggered Chute Trap 27188 | -5/Factory | Sucked down chute 27188 | -5/Factory | Entered Waste 27189 | -5/Waste | Met a frightened Derelict 27203 | -5/Waste | Warlord forces began an assault 27228 | -5/Waste | Build established: Tank 27233 | -5/Waste | 4 allies followed down the chute 27245 | -5/Waste | Spotted C-40 Crusher 27256 | -5/Waste | Allies destroyed C-40 Crusher 27261 | -5/Waste | Spotted C-40 Crusher 27261 | -5/Waste | Spotted C-40 Crusher 27271 | -5/Waste | Allies destroyed C-40 Crusher 27280 | -5/Waste | Destroyed C-40 Crusher 27292 | -5/Waste | Spotted C-40 Crusher 27297 | -5/Waste | Allies destroyed C-40 Crusher 27298 | -5/Waste | Spotted C-40 Crusher 27303 | -5/Waste | Allies destroyed C-40 Crusher 27307 | -5/Waste | Spotted C-40 Crusher 27309 | -5/Waste | Lost 6 allies 27317 | -5/Waste | Allies destroyed C-40 Crusher 27326 | -5/Waste | Discovered new exit (range 12) 27414 | -5/Waste | Entered Factory 27414 | -5/Factory | Accompanied by 15 allies 27415 | -5/Factory | Loaded intel: 99 trap records 27416 | -5/Factory | Loaded intel: 26 terminal locations 27436 | -5/Factory | Discovered exit to Upper Caves (range 18) 27569 | -5/Factory | Loaded intel: 8 recycling unit locations 27597 | -5/Factory | Scraphulk reinforcements arrived? 27619 | -5/Factory | Discovered new exit (range 21) 27688 | -5/Factory | Build established: Gunner 27781 | -5/Factory | Scraphulk reinforcements arrived? 28014 | -5/Factory | First assault squad dispatched 28026 | -5/Factory | Build established: Scavenger-Gunner 28093 | -5/Factory | Destroyed 10 combat bots 28285 | -5/Factory | Lost 3 parts (1p1u1w) 28327 | -5/Factory | Garrison activated, responded to threat 28390 | -5/Factory | Lost 5 allies 28404 | -5/Factory | Spotted B-75 Beast 28411 | -5/Factory | Befriended a Behemoth using the annoying Tinkerer's hack 28474 | -5/Factory | High security lockdown imminent 28502 | -5/Factory | Discovered new exit (range 17) 28526 | -5/Factory | Scraphulk reinforcements arrived 28554 | -5/Factory | High security lockdown engaged 28592 | -5/Factory | Cargo convoy interrupted 28623 | -5/Factory | Destroyed 9 combat bots 28689 | -5/Factory | Garrison activated, responded to threat 28794 | -5/Factory | Destroyed 13 combat bots 28809 | -5/Factory | Lost 7 allies 28935 | -5/Factory | Sterilization system engaged 28935 | -5/Factory | Non-combat units ordered to evacuate 29006 | -5/Factory | Entered Upper Caves 29007 | -5/Upper Caves | Identified exit to Upper Caves 29104 | -5/Upper Caves | Learned location of 1 exit from Factory 29566 | -5/Upper Caves | Build established: Scavenger-Tank 29608 | -5/Upper Caves | Attracted the attention of an 0b10 outpost 30006 | -5/Upper Caves | Entered another Upper Caves area 30006 | -5/Upper Caves | Accompanied by 2 allies 30007 | -5/Upper Caves | Identified exit to Warlord 30014 | -5/Upper Caves | Learned Factory terminal intel 30033 | -5/Upper Caves | Discovered new exit (range 16) 30207 | -5/Upper Caves | Attracted the attention of an 0b10 checkpoint 30459 | -5/Upper Caves | Attracted the attention of an 0b10 outpost 30669 | -5/Upper Caves | Build established: Scavenger-Gunner 30819 | -5/Upper Caves | Entered Warlord 30819 | -5/Warlord | Accompanied by 2 allies 30835 | -5/Warlord | System corruption cleaned by Quarantine Array 30875 | -5/Warlord | Found Prototype Device 30875 | -5/Warlord | Identified Minesniffer Drone Bay 30894 | -5/Warlord | Found Minesniffer Drone Bay 30964 | -5/Warlord | Received a Watcher feed algorithm from an ecstatic Tinkerer 30964 | -5/Warlord | Ran a visual enhancement algorithm 30964 | -5/Warlord | Ran a Watcher feed algorithm 30965 | -5/Warlord | Ran a visual enhancement algorithm 31083 | -5/Warlord | Discovered new exit (range 40) 31100 | -5/Warlord | Warlord's base attacked by MAIN.C 31111 | -5/Warlord | Found Prototype Launcher 31112 | -5/Warlord | Found Prototype Energy Gun 31114 | -5/Warlord | Found Prototype Energy Gun 31116 | -5/Warlord | Found Prototype Energy Gun 31120 | -5/Warlord | Found Prototype Energy Gun 31171 | -5/Warlord | Identified Vortex Shotgun (x2) 31172 | -5/Warlord | Identified Vortex Rail (x2) 31191 | -5/Warlord | Found Prototype Device 31191 | -5/Warlord | Identified Exp. Focal Shield 31281 | -5/Warlord | Found Prototype Device 31281 | -5/Warlord | Identified Exp. Phase Shifter 31286 | -5/Warlord | Found Prototype Reactor 31288 | -5/Warlord | Found Prototype Hackware 31318 | -5/Warlord | Identified Vortex Catalyst Activator 31450 | -5/Warlord | Warlord forces counterattacked 31537 | -5/Warlord | Spotted Executioner 31538 | -5/Warlord | Destroyed Executioner 31544 | -5/Warlord | Spotted Striker 31567 | -5/Warlord | Destroyed 16 combat bots 31600 | -5/Warlord | Spotted Executioner 31600 | -5/Warlord | Destroyed Executioner 31600 | -5/Warlord | Destroyed Striker 31603 | -5/Warlord | Spotted Executioner 31603 | -5/Warlord | Destroyed Executioner 31624 | -5/Warlord | Destroyed 14 combat bots 31700 | -5/Warlord | Spotted Executioner 31707 | -5/Warlord | Spotted Striker 31714 | -5/Warlord | Destroyed Striker 31735 | -5/Warlord | Destroyed 9 combat bots 31775 | -5/Warlord | Warlord base infiltrated, sounded retreat 31812 | -5/Warlord | Spotted Striker 31817 | -5/Warlord | Spotted Striker 31819 | -5/Warlord | Destroyed Y2-8XE(g) 31819 | -5/Warlord | Destroyed Striker 31820 | -5/Warlord | Spotted Executioner 31822 | -5/Warlord | Destroyed Striker 31825 | -5/Warlord | Destroyed Executioner 31849 | -5/Warlord | Destroyed 8 combat bots 31862 | -5/Warlord | Lost 7 allies 31873 | -5/Warlord | Rebuked by Warlord 31935 | -5/Warlord | Spotted Striker 31936 | -5/Warlord | Spotted Striker 31976 | -5/Warlord | Lost 4 allies 32000 | -5/Warlord | Spotted B-75 Beast 32000 | -5/Warlord | Spotted B-86 Titan 32000 | -5/Warlord | Spotted Executioner 32008 | -5/Warlord | Destroyed B-86 Titan 32011 | -5/Warlord | Core integrity fell below 50% 32043 | -5/Warlord | Lost 7 allies 32071 | -5/Warlord | Entered Proximity Caves 32081 | -4/Proximity Caves | Attracted the attention of an 0b10 checkpoint 32339 | -4/Proximity Caves | Ambushed by research squad 32409 | -4/Proximity Caves | Learned 4 Research zone layouts 32462 | -4/Proximity Caves | Learned Research terminal intel 32471 | -4/Proximity Caves | Discovered new exit (range 5) 32499 | -4/Proximity Caves | Entered Factory 32499 | -4/Factory | Evolved 2 slots: Power x1, Utility x1 32499 | -4/Factory | Identified Ghost Barrier 32500 | -4/Factory | Identified exit to Extension 32501 | -4/Factory | Identified exit to Upper Caves 32502 | -4/Factory | Loaded intel: 28 terminal locations 32589 | -4/Factory | Noticed UFD Elites at a Recycling Unit 32622 | -4/Factory | Mak. System Shield fried by hacking feedback 32797 | -4/Factory | Repaired Broken Scatter Rocket Array 32818 | -4/Factory | Build established: Hacker-Gunner 32880 | -4/Factory | Repaired Broken KE Penetrator 33063 | -4/Factory | Repaired Broken Imp. Antigrav System 33318 | -4/Factory | Cargo convoy interrupted 33333 | -4/Factory | Build established: Wizard-Gunner 33532 | -4/Factory | Spotted B-86 Titan 33563 | -4/Factory | Found PL-3XN's Ring of Power 33566 | -4/Factory | Found Prototype Launcher 33566 | -4/Factory | Identified Hellfire Missile Launcher 33568 | -4/Factory | Found Hellfire Missile Launcher 33569 | -4/Factory | Found Prototype Device 33569 | -4/Factory | Identified Exp. Actuator Array 33576 | -4/Factory | Found Prototype Hackware 33576 | -4/Factory | Identified Exp. System Shield 33604 | -4/Factory | Loaded intel: 8 recycling unit locations 33636 | -4/Factory | Garrison activated, responded to threat 33830 | -4/Factory | System corruption reached 10% 33901 | -4/Factory | Lost 7 parts (1p1n3u2w) 33967 | -4/Factory | Scraphulk reinforcements arrived? 33977 | -4/Factory | Garrison activated, responded to threat 33999 | -4/Factory | First assault squad dispatched 34093 | -4/Factory | Build established: Scavenger-Gunner 34394 | -4/Factory | Learned Research emergency access door positions 34500 | -4/Factory | Loaded intel: 72 trap records 34538 | -4/Factory | Learned Research stockpile data 34565 | -4/Factory | Learned location of 1 exit from Upper Caves 34569 | -4/Factory | High security lockdown imminent 34580 | -4/Factory | Learned Testing security intel 34600 | -4/Factory | Identified exit to Research 34649 | -4/Factory | High security lockdown engaged 34758 | -4/Factory | Entered Extension 34837 | -4/Extension | Rescued a captive Derelict 34838 | -4/Extension | Rescued a captive Derelict 34861 | -4/Extension | Rescued a captive Derelict 34933 | -4/Extension | Rescued a captive Derelict 34993 | -4/Extension | Rescued a captive Derelict 35008 | -4/Extension | First assault squad dispatched 35050 | -4/Extension | Spotted B-86 Titan 35074 | -4/Extension | Spotted B-86 Titan 35089 | -4/Extension | Allies destroyed B-86 Titan 35113 | -4/Extension | Allies destroyed B-86 Titan 35118 | -4/Extension | Lost 3 parts (1n2u) 35129 | -4/Extension | Lost 4 allies 35148 | -4/Extension | Rescued a captive Derelict 35159 | -4/Extension | Rescued a captive Derelict 35276 | -4/Extension | Rescued A7 35393 | -4/Extension | Energy Cycler disabled 35394 | -4/Extension | Rescued a captive Derelict 35394 | -4/Extension | Rescued a captive Derelict 35394 | -4/Extension | Rescued a captive Derelict 35424 | -4/Extension | Lost 3 allies 35452 | -4/Extension | Discovered new exit (range 6) 35506 | -4/Extension | Disrupted transfer network 35529 | -4/Extension | High security lockdown imminent 35566 | -4/Extension | P-70 Sage assimilated allied DB-CZ9(g) 35569 | -4/Extension | Entered Cetus 35569 | -4/Cetus | Accompanied by 2 allies (A7) 35574 | -4/Cetus | Acquired a Cetus Manufacturing Module code from A7 35580 | -4/Cetus | Spotted Cetus Guard 35582 | -4/Cetus | Spotted Cetus Guard 35582 | -4/Cetus | Spotted Cetus Guard 35590 | -4/Cetus | Destroyed Cetus Guard 35594 | -4/Cetus | Spotted Cetus Guard 35596 | -4/Cetus | Lost 3 allies 35599 | -4/Cetus | Allies destroyed Cetus Guard 35600 | -4/Cetus | Allies destroyed Cetus Guard 35623 | -4/Cetus | Allies destroyed Cetus Guard 35629 | -4/Cetus | Lost 4 parts (2n1u1w) 35632 | -4/Cetus | Extracted ID and sensor layout for unrecognized location from A7's data core 35675 | -4/Cetus | Started Cetus Manufacturing Module 35688 | -4/Cetus | Discovered new exit (range 22) 35700 | -4/Cetus | Manufactured an Enhanced Grunt 35725 | -4/Cetus | Manufactured an Enhanced Grunt 35750 | -4/Cetus | Manufactured an Enhanced Grunt 35775 | -4/Cetus | Manufactured an Enhanced Grunt 35800 | -4/Cetus | Manufactured an Enhanced Grunt 35845 | -4/Cetus | Spotted Cetus Guard 35848 | -4/Cetus | Spotted Cetus Guard 35849 | -4/Cetus | Spotted Cetus Guard 35853 | -4/Cetus | Spotted Cetus Guard 35853 | -4/Cetus | Destroyed Cetus Guard 35862 | -4/Cetus | Allies destroyed Cetus Guard 35863 | -4/Cetus | Allies destroyed Cetus Guard 35868 | -4/Cetus | Allies destroyed Cetus Guard 35894 | -4/Cetus | Found Prototype Device 35894 | -4/Cetus | Identified Exp. Thermal Shield 35921 | -4/Cetus | Met Revision 17 35988 | -4/Cetus | Entered Archives 35988 | -4/Archives | Accompanied by 3 allies 36228 | -4/Archives | Discovered new exit (range 22) 36236 | -4/Archives | Discovered exit to Research (range 14) 36246 | -4/Archives | Discovered new exit (range 17) 36572 | -4/Archives | Entered Hub_04(d) 36572 | -4/Hub_04(d) | Accompanied by 3 allies 36648 | -4/Hub_04(d) | Spotted B-86 Titan 36674 | -4/Hub_04(d) | Allies destroyed B-86 Titan 36764 | -4/Hub_04(d) | Local machine network offline 36902 | -4/Hub_04(d) | Identified exit to Garrison 36940 | -4/Hub_04(d) | Garrison activated, responded to threat 36966 | -4/Hub_04(d) | Network Hub disabled 36974 | -4/Hub_04(d) | Network Hub disabled 36975 | -4/Hub_04(d) | Core integrity fell below 50% 36994 | -4/Hub_04(d) | Lost 3 allies 37005 | -4/Hub_04(d) | Lost 4 parts (2n2w) 37095 | -4/Hub_04(d) | Spotted Lightning 37095 | -4/Hub_04(d) | Spotted Lightning 37095 | -4/Hub_04(d) | Spotted Lightning 37112 | -4/Hub_04(d) | Entered Research 37112 | -3/Research | Evolved 2 slots: Propulsion x1, Utility x1 37113 | -3/Research | Identified exit to Research 37116 | -3/Research | Loaded intel: 22 terminal locations 37127 | -3/Research | Found Hvy. Reactive Plating 37166 | -3/Research | Repaired Cmb. Gravmag System 37206 | -3/Research | Repaired Broken KE Penetrator 37235 | -3/Research | Repaired KE Penetrator 37285 | -3/Research | Repaired Adv. KE Penetrator 37312 | -3/Research | Revision forces began assault on 0b10 37315 | -3/Research | Repaired Antigrav System 37338 | -3/Research | Identified exit to Armory 37338 | -3/Research | Identified exit to Testing 37342 | -3/Research | Identified Vortex Chain Reactor 37385 | -3/Research | Met up with Revision 17++ 37541 | -3/Research | Loaded intel: 5 recycling unit locations 37551 | -3/Research | Destroyed 9 combat bots 37561 | -3/Research | Central database locked down 37588 | -3/Research | Spotted B-86 Titan 37616 | -3/Research | Destroyed B-86 Titan 37812 | -3/Research | Research terminal network offline 37863 | -3/Research | Build established: Scavenger-Tank 37863 | -3/Research | Discovered exit to Research (range 13) 37863 | -3/Research | Spotted Striker 37863 | -3/Research | Spotted Striker 37963 | -3/Research | Lost 3 allies 38029 | -3/Research | Found Prototype Launcher 38029 | -3/Research | Identified Com. Tesla Bomb Launcher 38136 | -3/Research | Scraphulk reinforcements arrived? 38177 | -3/Research | Lost 4 allies 38280 | -3/Research | Lost 5 allies 38464 | -3/Research | Entered Testing 38464 | -3/Testing | Accompanied by 1 ally 38524 | -3/Testing | Repaired Railgun? 38546 | -3/Testing | Repaired Broken Adv. Force Field? 38593 | -3/Testing | Repaired Cmb. Gravmag System? 38606 | -3/Testing | Repaired Adv. KE Penetrator? 38659 | -3/Testing | Repaired Broken KE Penetrator 38701 | -3/Testing | Protovariant out of control (PH-4HRZVGLJHT) 38701 | -3/Testing | Unleashed a protovariant (PH-4HRZVGLJHT) 38728 | -3/Testing | Repaired Broken Adv. KE Penetrator? 38760 | -3/Testing | Scanned by Researcher 38800 | -3/Testing | Found Prototype Hackware 38800 | -3/Testing | Identified Exp. Hacking Suite 38901 | -3/Testing | Found Prototype Energy Gun 38901 | -3/Testing | Identified Tachyon Dispersion Ray 39055 | -3/Testing | Discovered exit to Research (range 15) 39139 | -3/Testing | Found Prototype Device 39139 | -3/Testing | Identified 2N-1CE's Frost Array 39234 | -3/Testing | Spotted Striker 39234 | -3/Testing | Spotted Striker 39360 | -3/Testing | Repaired Adv. Force Field? 39396 | -3/Testing | Repaired Imp. Antigrav System 39436 | -3/Testing | Repaired Lgt. Particle Reactor? 39464 | -3/Testing | First assault squad dispatched 39656 | -3/Testing | Found Prototype Protection 39656 | -3/Testing | Identified Med. Regenerative Plating 39698 | -3/Testing | Entered Research 39698 | -2/Research | Evolved 2 slots: Propulsion x1, Utility x1 39813 | -2/Research | Discovered new exit (range 15) 39903 | -2/Research | Identified exit to Access 39906 | -2/Research | Identified exit to Quarantine 39944 | -2/Research | Lost 3 allies 39954 | -2/Research | Spotted B-90 Cyclops 39973 | -2/Research | Revealed the true nature of CR-A16's Pointy Stick 39976 | -2/Research | Destroyed B-90 Cyclops 40002 | -2/Research | Lost 3 parts (1n1u1w) 40173 | -2/Research | Spotted B-90 Cyclops 40182 | -2/Research | Destroyed B-90 Cyclops 40415 | -2/Research | Local machine network offline 40448 | -2/Research | First assault squad dispatched 40506 | -2/Research | Found Prototype Reactor 40506 | -2/Research | Identified Zero-point Reactor 40562 | -2/Research | Garrison activated, responded to threat 40838 | -2/Research | Entered Quarantine 40855 | -2/Quarantine | Found Alien Energy Cannon 40855 | -2/Quarantine | Identified Core Cannon 40897 | -2/Quarantine | Central database locked down 40959 | -2/Quarantine | Build established: Scavenger-Gunner 40969 | -2/Quarantine | Repaired Hellfire Missile Launcher 40999 | -2/Quarantine | Repaired Cmb. Gravmag System 41088 | -2/Quarantine | First assault squad dispatched 41089 | -2/Quarantine | Found Alien Slashing Weapon 41089 | -2/Quarantine | Identified Sigix Broadsword 41110 | -2/Quarantine | Local machine network offline 41146 | -2/Quarantine | Spotted Alpha 7 41179 | -2/Quarantine | Found Alien Artifact 41184 | -2/Quarantine | Found Alien Artifact 41188 | -2/Quarantine | Found Alien Artifact 41190 | -2/Quarantine | Found Alien Artifact 41199 | -2/Quarantine | Found Dimensional Node Initializer 41201 | -2/Quarantine | Found Dimensional Node Initializer 41201 | -2/Quarantine | Initialized slip node 41204 | -2/Quarantine | Found Dimensional Node Initializer 41204 | -2/Quarantine | Initialized slip node 41209 | -2/Quarantine | Identified Hpw. Transdimensional Reconstructor (x4) 41209 | -2/Quarantine | Warped through subspace to slip node 41254 | -2/Quarantine | Spotted Fortress 41282 | -2/Quarantine | Discovered new exit (range 6) 41282 | -2/Quarantine | Discovered new exit (range 6) 41284 | -2/Quarantine | Entered Protoforge 41291 | -2/Protoforge | Build established: Scavenger-Mutant 41377 | -2/Protoforge | Superfortress began startup sequence 41416 | -2/Protoforge | Spotted Hotshot 41416 | -2/Protoforge | Spotted Hotshot 41424 | -2/Protoforge | Destroyed Hotshot 41439 | -2/Protoforge | Destroyed Hotshot 41616 | -2/Protoforge | Local machine network offline 41627 | -2/Protoforge | Spotted Hotshot 41650 | -2/Protoforge | Spotted Hotshot 41650 | -2/Protoforge | Spotted Hotshot 41667 | -2/Protoforge | Destroyed Hotshot 41692 | -2/Protoforge | Destroyed Hotshot 41764 | -2/Protoforge | Spotted AP7-3 41764 | -2/Protoforge | Spotted AP7-3 41820 | -2/Protoforge | Spotted Hotshot 41824 | -2/Protoforge | Spotted Hotshot 41857 | -2/Protoforge | Spotted Decapitator 41857 | -2/Protoforge | Spotted Decapitator 41860 | -2/Protoforge | Spotted EXE-6 41906 | -2/Protoforge | Warped through subspace 41906 | -2/Protoforge | Spotted EXE-6 42146 | -2/Protoforge | Spotted Hotshot 42177 | -2/Protoforge | Forge Plexus network access discovered 42177 | -2/Protoforge | Entered Access 42177 | -1/Access | Evolved 2 slots: Utility x1, Weapon x1 42677 | -1/Access | First assault squad dispatched 42733 | -1/Access | Build established: Scavenger-Gunner 42836 | -1/Access | Lost 5 parts (3n1u1w) 42893 | -1/Access | Warped through subspace 42904 | -1/Access | Lost 3 parts (1n2w) 42966 | -1/Access | Initialized slip node 43049 | -1/Access | Found Powered Armor 43141 | -1/Access | Discovered new exit (range 8) 43144 | -1/Access | Entered Command 43342 | -1/Command | Disengaged cave seal 43342 | -1/Command | Wild derelicts emerged from the dark tunnel 43344 | -1/Command | Identified exit to Surface 43345 | -1/Command | Enhanced Grunt warped into view, answering call for help 43351 | -1/Command | Enhanced Grunt warped into view, answering call for help 43384 | -1/Command | Spotted Striker 43393 | -1/Command | Spotted Alpha 7 43394 | -1/Command | First assault squad dispatched 43397 | -1/Command | Spotted Alpha 7 43417 | -1/Command | Spotted Striker 43417 | -1/Command | Spotted Executioner 43417 | -1/Command | Spotted B-99 Colossus 43417 | -1/Command | Spotted Executioner 43418 | -1/Command | Allies destroyed Executioner 43419 | -1/Command | Spotted Executioner 43431 | -1/Command | Destroyed Striker 43431 | -1/Command | Destroyed Striker 43472 | -1/Command | Failed to warp due to unstable space 43479 | -1/Command | Destroyed Alpha 7 43496 | -1/Command | Destroyed Executioner 43497 | -1/Command | Core integrity fell below 50% 43499 | -1/Command | Destroyed Executioner 43511 | -1/Command | Spotted B-99 Colossus 43557 | -1/Command | Lost 15 parts (2p8n3u2w) 43570 | -1/Command | Destroyed Alpha 7 43622 | -1/Command | Found Prototype Processor 43622 | -1/Command | Identified Exp. Core Analyzer 43673 | -1/Command | Lost 3 parts (2n1u) 43731 | -1/Command | Core integrity fell below 20% 43751 | *** | Escaped! Last Messages --------------- 43736_ Destroyed Adv. Heat Sink. 43736_ G-73 Enforcer destroyed. 43739_ L-61 Swordsman destroyed. 43741_ G-73 Enforcer destroyed. 43741_ Adv. Target Analyzer destroyed. 43741_ Critical hit (Blast). 43742_ G-73 Enforcer knocked back. 43744_ The unstable cave ceiling collapses. 43744_ Exp. Core Analyzer destroyed. 43744_ Imp. System Restoration Module destroyed. 43744_ Med. Regenerative Plating destroyed. 43744_ ALERT: Suspicious intruders detected, dispatching Specialist reinforcements to area. 43745_ Acquired Mic. Antimatter Reactor. 43746_ Core Cannon destroyed. 43747_ Graviton Cannon destroyed. 43747_ Penetrated by Slug. 43749_ Impulse Thruster Array destroyed. 43750_ Penetrated by Slug. 43750_ Acquired 5 matter. Map ----- +----------------------------------------------------+ | ???????????????????????????# #???# #????? | | ???????????????????????????# """" #???# #????? | | ???????????????????????????# """" #???# ###### | | ???????????????????????????# """" #???# | | ???????????????????????????+ """" ##### | | ?????????????????????????? # + | | ??????????????????????? #* % ##### | | ?????????????????????## BB###"###"##???# | | ???????????????????? BB##?"??# #????######### | | ????????????????????# #?"??# #????????????? | | ???????????????????## ;?"#?# #?????????????? | | ???????????????????# #"#?# #?????????? ??? | | ???????????????????# ##"### #?######?? ???? | | ???????????????????# ! #;#?" " !!#?"????? | | ???????????????????# % ;#;#?" #! ! # ????? | | ????????????????????# ^* ^% #;#?# "= "#?????? | | ????????????????????## %^ "#?#%+** #??????? | | ????????????????????# ^ ! ;### #! #??????? | | ??????????????????####%^^%!%=# ### # #??????? | | ??????????????????# =%!= %[=% ## #?#"####??????? | | ??????????????????# [=% [%= ## ## #??????????? | | ??????????????????# ^ % % ## #???????????? | | ??????????????????# "" % # #######?????? | | ??????????????????# ^" = g## ## ! #####" | | ??????????????##### "" [% % !; " | | ??????????# ;; ^ "@ ^! * ;; %;w"""" | | ?????????????###### ^" %^%[ #= ### ### ]# | | ??????????????????# ^ "" " %*## ###+##??? #? | | ??????????????????# ^^ ^^^% ## %! #?????? | | ??????????????????# % ## %= #?????? | | ??????????????????# % ## % #?????? | | ??????????????????################ + #?????? | | ?????????????????????????????????# " % #?????? | | ?????????????????????????????????# ######"###????? | | ?????????????????????????????????# | | ?????????????????????????????????###+####"###????? | | ????????????????????????????????????????#" ??????? | | ????????????????????????????????????????#" ??????? | | ????????????????????????????????????????#" ??????? | | ????????????????????????????????????????#" ??????? | | ????????????????????????????????????????#" ??????? | | ????????????????????????????????????????#" ??????? | | ????????????????????????????????????????#"##?????? | | ????????????????????????????????????????? ???????? | | ?????????????????????????????????????????"???????? | | ????????????????????????????????????????? ???????? | | ????????????????????????????????????????? ???????? | | ????????????????????????????????????????? ???????? | | ?????????????????????????????????????????"???????? | | ????????????????????????????????????????? ???????? | +----------------------------------------------------+ Best States ------------- Heat Dissipation 201 Coolant Potential 120 Energy Generation 55 Energy Capacity 700 Matter Stores 700 Matter Capacity 700 Sight Range 23 Robot Scan Range 15 Terrain Scan Range 16 Terrain Scan Density 135 Additional Mass Support 16 Armor Coverage 550 Resistance: KI 30 Resistance: TH 30 Propulsion Shielding 90 Weapon Shielding 100 Phase Shifting 20 Evasion (%) 77 Targeting Accuracy 8 Target Analysis 12 Core Analysis 8 Armor Integrity Analysis 40 Recoil Reduction 10 Matter Filtering 50 Kinecelleration 40 Salvage Targeting 1 Offensive Hacking 54 Defensive Hacking 50 Item Schematics ----------------- Cooling System | -9/Materials | Scanalyzed Plasma Cutter | -9/Materials | Scanalyzed Beam Cannon | -9/Materials | Extracted Weapon Shielding | -9/Materials | Extracted Autogun | -9/Materials | Extracted Grenade Launcher | -9/Materials | Extracted Terrain Scan Processor | -9/Materials | Extracted Ion Engine | -9/Materials | Extracted Imp. Assault Rifle | -9/Materials | Scanalyzed Mni. Grenade Launcher | -9/Materials | Scanalyzed Imp. Flight Unit | -9/Materials | Scanalyzed Hvy. Assault Cannon | -8/Materials | Scanalyzed Missile Launcher | -8/Materials | Scanalyzed Fission Core | -8/Materials | Scanalyzed Hcp. Matter Pod | -8/Materials | Scanalyzed Minigun | -8/Materials | Extracted Adv. Visual Processing Unit | -8/Materials | Extracted Imp. System Restoration Module | -8/Recycling | Hacked Cmb. Airjet | -6/Factory | Scanalyzed Gauss Cannon | -6/Factory | Scanalyzed Imp. Weapon Shielding | -6/Factory | Scanalyzed IFF Parser | -6/Factory | Extracted Carbon-fiber Leg | -6/Factory | Extracted Adv. Assault Cannon | -6/Factory | Extracted Mic. Fission Core | -6/Factory | Hacked Imp. System Shield | -6/Factory | Downloaded Hvy. Missile Launcher | -6/Factory | Scanalyzed Lgt. Fission Core | -6/Factory | Scanalyzed Magnetic Acceleration Cannon | -6/Factory | Scanalyzed Adv. Recoil Stabilizer | -5/Factory | Scanalyzed Exp. Heat Sink | -5/Factory | Scanalyzed Hardcell Cannon | -4/Factory | Hacked Hellfire Missile Launcher | -3/Research | Scanalyzed Imp. Antigrav System | -3/Research | Scanalyzed Vortex Chain Reactor | -3/Research | Scanalyzed Adv. Gravity Neutralizer | -3/Research | Scanalyzed Exp. Coolant Injector | -3/Research | Scanalyzed Adv. KE Penetrator | -3/Research | Scanalyzed Quantum Reactor | -3/Research | Scanalyzed Exp. Thermal Shield | -3/Research | Scanalyzed Linear Accelerator | -3/Research | Extracted Drone Bay | -3/Research | Extracted Imp. Gyrokinetic Inverter | -3/Research | Extracted Hvy. Wave Gun | -3/Research | Extracted Hacking Suite | -3/Research | Extracted Imp. Focal Shield | -3/Research | Extracted Imp. Hardlight Generator | -3/Research | Extracted Adv. Weapon Cycler | -3/Research | Scanalyzed Antigrav Array | -3/Research | Scanalyzed Dispersion Rifle | -3/Research | Extracted Imp. Linear Gravjet | -3/Research | Extracted Adv. Power Amplifier | -3/Research | Extracted Adv. Myomer Leg | -3/Research | Extracted Point Defense System | -3/Research | Extracted Hyp. Railgun | -3/Research | Extracted Adv. Hacking Suite | -3/Research | Extracted Nuclear Pulse Array | -3/Research | Extracted Imp. Reaction Control System | -3/Research | Extracted Matter Neutralizer | -3/Research | Extracted Adv. Cryofiber Web | -3/Research | Extracted Imp. Armor Integrity Analyzer | -3/Research | Extracted Com. Tesla Bomb Launcher | -3/Testing | Archive Cmb. Antigrav System | -3/Testing | Scanalyzed Lgt. Particle Reactor | -3/Testing | Scanalyzed Plasma Sword | -3/Testing | Archive Gravity Neutralizer | -3/Testing | Archive Com. Mass Driver | -3/Testing | Archive Exp. System Shield | -3/Testing | Archive Lrn. Phase Cannon | -3/Testing | Archive Imp. Thermal Defense Suite | -3/Testing | Archive Hvy. Tesla Rifle | -3/Testing | Archive Imp. Matter Compressor | -3/Testing | Archive Exp. Signal Interpreter | -3/Testing | Archive Adv. Matter Compressor | -3/Testing | Archive Enh. Force Rifle | -3/Testing | Archive Exp. Hacking Suite | -3/Testing | Archive Electron Diverter | -3/Testing | Archive Cld. Antimatter Reactor | -2/Research | Scanalyzed Adv. Cooling System | -2/Research | Scanalyzed Zero-point Reactor | -2/Quarantine | Scanalyzed Robot Schematics ------------------ O-24 Administrator | -6/Factory | Downloaded W-44 Eye | -3/Testing | Archive K-01 Serf | -3/Testing | Archive Fabricated ------------ Adv. Assault Cannon | x2 | -6/Factory Repaired ---------- Imp. Weapon Shielding | 15% | -8/Storage Adv. Treads | 62% | -8/Storage Hvy. Assault Cannon | 38% | -6/Factory Gravmag System | 17% | -6/Factory Cmb. Airjet | 30% | -6/Factory Scatter Rocket Array | 3% | -4/Factory | Broken KE Penetrator | 9% | -4/Factory | Broken Imp. Antigrav System | 36% | -4/Factory | Broken Cmb. Gravmag System | 4% | -3/Research KE Penetrator | 1% | -3/Research | Broken KE Penetrator | 12% | -3/Research Adv. KE Penetrator | 33% | -3/Research Antigrav System | 12% | -3/Research Railgun | 18% | -3/Testing Adv. Force Field | 37% | -3/Testing | Broken Cmb. Gravmag System | 39% | -3/Testing Adv. KE Penetrator | 24% | -3/Testing KE Penetrator | 26% | -3/Testing | Broken Adv. KE Penetrator | 65% | -3/Testing | Broken Adv. Force Field | 18% | -3/Testing Imp. Antigrav System | 33% | -3/Testing Lgt. Particle Reactor | 28% | -3/Testing Hellfire Missile Launcher | 34% | -2/Quarantine Cmb. Gravmag System | 31% | -2/Quarantine Alien Tech Used ----------------- Core Expander Dimensional Node Initializer Core Cannon Sigix Broadsword High-powered Transdimensional Reconstructor Achievements -------------- None Challenges ------------ None Game ------ Seed HeartCentriumAutohacker Manual? 0 Play Time 13:02:00 Cumulative 441.6 hours Start 2025.07.13 @ 22:56:55 End 2025.07.15 @ 19:07:23 Sessions 18 Manual Loads 0 Difficulty Rogue Special Mode None Game No. 247 Rogue 247 Adventurer 0 Explorer 0 Win Type 0 Total 5 Types 3/0/1/1/0/0/0/0/0/0 Lore% 86 Gallery% 74 Achievement% 67 Wizard Run 0 Options --------- Layout 2 ASCII 0 Keyboard 1 Movement Vi Keybinds 0 Fullscreen 1 Font 16/Tamsyn Map View 55x47 Zoom Use 0% Tactical HUD 1 Map Filters NONE Filters NONE Steam 0 RUN: cc46c908-9f03-4ae7-a95d-a466a93f308d